Workbook

Sheet Materjal
A1: EPD | B1: Nimetus | C1: Ühik | D1: GWP, kg/kg | E1: Hind
A2: Kütused
B3: Maagaas | C3: m³ | D3: 1.881 | E3: 0.5
B4: Biogaas | C4: m³ | D4: 0.001113813201 | E4: 1.4
B5: Biodiisel FAME | C5: L | D5: 0.148 | E5: 1.5
B6: Biodiisel HVO | C6: L | D6: 0.003 | E6: 1.3
B7: Biodiisel ME | C7: L | D7: 0.018 | E7: 2
B8: Diisel | C8: L | D8: 2.613741823 | E8: 1.1
B9: Bensiin | C9: L | D9: 2.247 | E9: 1.2
B10: PKÕ | C10: kg | D10: 3.134963079 | E10: 0.7
B11: Elekter | C11: kWh | D11: 0.4 | E11: 0.19
A17: Asfaltsegud
B18: SMA | C18: kg | D18: =68/1000 -> 0.068
B19: AC surf | C19: kg | D19: =65/1000 -> 0.065
B20: AC bin | C20: kg | D20: =44/1000 -> 0.044
B21: AC base | C21: kg | D21: =35/1000 -> 0.035
B22: MA | C22: kg | D22: =76/1000 -> 0.076
B23: PA | C23: kg | D23: =46/1000 -> 0.046
B24: Filler, peentäitematerjal | C24: kg | D24: =7.4/1000 -> 0.0074
A26: Asfalt materjalid
B27: Tardkivikillustik,ridamaterjal | C27: kg | D27: =11.7/1000 -> 0.0117 | E27: 23
B28: Tardkivikillustik, fraktsineeritud | C28: kg | D28: =11.7/1000 -> 0.0117 | E28: 23 | T28: Ter tihedus
B29: Tardkivikillustik, purustatud | C29: kg | D29: 0.0117 | E29: 23 | G29: 0.063 | H29: 0.125 | I29: 0.25 | J29: 0.5 | K29: 1 | L29: 2 | M29: 4 | N29: 6.3 | O29: 8 | P29: 12 | Q29: 16 | R29: 20 | S29: 32
B30: Tardkivikillustik, TAU10/20 | C30: kg | D30: 0.0117 | E30: 25 | G30: 1 | H30: 1 | I30: 1 | J30: 1 | K30: 2 | L30: 2 | M30: 2 | N30: 3 | O30: 20 | P30: 81.66666667 | Q30: 80 | R30: 95 | S30: 100 | T30: 2.69
B31: Tardkivikillustik, TAU 8/16 | C31: kg | D31: 0.0117 | E31: 26 | G31: 1 | H31: 1 | I31: 1 | J31: 1 | K31: 1 | L31: 2 | M31: 5 | N31: 20 | O31: 40 | P31: 60 | Q31: 90 | R31: 100 | T31: 2.68
B32: Tardkivikillustik, TAU 6/12 | C32: kg | D32: 0.0117 | E32: 26 | G32: 1 | H32: 1 | I32: 1 | J32: 1 | K32: 1 | L32: 2 | M32: 8 | N32: 30 | O32: 60 | P32: 95 | Q32: 100 | T32: 2.68
B33: Tardkivikillustik, TAU 4/8 | C33: kg | D33: 0.0117 | E33: 27 | G33: 1 | H33: 1 | I33: 1 | J33: 1 | K33: 2 | L33: 2 | M33: 30 | N33: 60 | O33: 90 | P33: 100 | T33: 2.91
B34: Tardkivikillustik, TAU 2/6 | C34: kg | D34: 0.0117 | E34: 26 | G34: 1 | H34: 1 | I34: 1 | J34: 1 | K34: 5 | L34: 30 | M34: 60 | N34: 90 | O34: 100 | T34: 2.69
B35: Tardkivikillustik, TAU 0/5 | C35: kg | D35: 0.0117 | E35: 16 | G35: 8 | H35: 20 | I35: 30 | J35: 50 | K35: 60 | L35: 70 | M35: 88 | N35: 100 | T35: 2.76
B37: Tardkivikillustik, INKOO 10/20 | C37: kg | D37: 0.0117 | E37: 25 | G37: 1 | H37: 1 | I37: 1 | J37: 1 | K37: 2 | L37: 2 | M37: 2 | N37: 3 | O37: 20 | P37: 81.66666667 | Q37: 80 | R37: 95 | S37: 100 | T37: 2.69
B38: Tardkivikillustik, INKOO 8/16 | C38: kg | D38: 0.0117 | E38: 26 | G38: 1 | H38: 1 | I38: 1 | J38: 1 | K38: 1 | L38: 2 | M38: 2 | N38: 20 | O38: 40 | P38: 60 | Q38: 90 | R38: 100 | T38: 2.68
B39: Tardkivikillustik, INKOO 6/12 | C39: kg | D39: 0.0117 | E39: 26 | G39: 1 | H39: 1 | I39: 1 | J39: 1 | K39: 1 | L39: 2 | M39: 4 | N39: 30 | O39: 65 | P39: 95 | Q39: 100 | T39: 2.68
B40: Tardkivikillustik, INKOO 4/8 | C40: kg | D40: 0.0117 | E40: 27 | G40: 1 | H40: 1 | I40: 1 | J40: 1 | K40: 2 | L40: 2 | M40: 30 | N40: 60 | O40: 90 | P40: 100 | T40: 2.91
B41: Tardkivikillustik, INKOO 2/6 | C41: kg | D41: 0.0117 | E41: 26 | G41: 1 | H41: 1 | I41: 1 | J41: 1 | K41: 5 | L41: 30 | M41: 60 | N41: 95 | O41: 100 | T41: 2.69
B42: Tardkivikillustik, INKOO 0/5 | C42: kg | D42: 0.0117 | E42: 16 | G42: 8 | H42: 20 | I42: 30 | J42: 50 | K42: 60 | L42: 70 | M42: 88 | N42: 100 | T42: 2.76
B44: Pae, 16/32 | C44: kg | D44: =3.3/1000 -> 0.0033 | E44: 8 | G44: 1 | H44: 1 | I44: 1 | J44: 1 | K44: 2 | L44: 2 | M44: 2 | N44: 3 | O44: 20 | P44: 81.66666667 | Q44: 75 | R44: 88 | S44: 98 | T44: 2.73
B45: Pae, 8/16 | C45: kg | D45: =3.3/1000 -> 0.0033 | E45: 9 | G45: 1 | H45: 1 | I45: 1 | J45: 1 | K45: 1 | L45: 2 | M45: 2 | N45: 20 | O45: 40 | P45: 60 | Q45: 90 | R45: 100 | T45: 2.73
B46: Pae, 8/12 | C46: kg | D46: 0.0033 | E46: 9 | G46: 1 | H46: 1 | I46: 1 | J46: 1 | K46: 1 | L46: 2 | M46: 4 | N46: 30 | O46: 65 | P46: 95 | Q46: 100 | T46: 2.73
B47: Pae, 4/16 | C47: kg | D47: 0.0033 | E47: 9 | G47: 1 | H47: 1 | I47: 1 | J47: 1 | K47: 1 | L47: 2 | M47: 30 | N47: 40 | O47: 60 | P47: 75 | Q47: 95 | T47: 2.73
B48: Pae, 4/12 | C48: kg | D48: 0.0033 | E48: 9 | G48: 1 | H48: 1 | I48: 1 | J48: 1 | K48: 1 | L48: 2 | M48: 30 | N48: 60 | O48: 80 | P48: 95 | Q48: 100 | T48: 2.73
B49: Pae, 4/8 | C49: kg | D49: 0.0033 | E49: 9 | G49: 1 | H49: 1 | I49: 1 | J49: 1 | K49: 2 | L49: 2 | M49: 30 | N49: 60 | O49: 90 | P49: 100 | T49: 2.73
B50: Pae, 0/5 | C50: kg | D50: 0.0033 | E50: 7 | G50: 8 | H50: 20 | I50: 30 | J50: 50 | K50: 60 | L50: 70 | M50: 88 | N50: 100 | T50: 2.76
B51: Paekivi, fraktsioneeritud | C51: kg | D51: 0.0033 | E51: 8
B52: Paekivi, fraktsioneerimata | C52: kg | D52: 0.0033 | E52: 6
A53: Liivad ja kruusad
B54: Looduslik liiv | C54: kg | D54: =1.7/1000 -> 0.0017 | E54: 3.5
B55: Pestud liiv | C55: kg | D55: =1.7/1000 -> 0.0017 | E55: 5
B56: Pumbatud liiv | C56: kg | D56: 0.0017 | E56: 4
B57: Sõelutud liiv | C57: kg | D57: 0.0017 | E57: 5 | G57: 2 | H57: 20 | I57: 60 | J57: 80 | K57: 90 | L57: 100 | T57: 2.66
B58: Veealune liiv | C58: kg | D58: 0.0017 | E58: 4.5
B59: 1 karj._liiv | C59: kg | D59: 0.0017 | E59: 4.1 | T59: 1.76
B60: 2 karj._liiv | C60: kg | D60: 0.0017 | E60: 5 | T60: 1.72
B61: Prustatud kruus | C61: kg | D61: =2.5/1000 -> 0.0025 | E61: 5.2 | T61: 1.92
B62: Kruusliiv_1 | C62: kg | D62: =2.5/1000 -> 0.0025 | E62: 4.8 | T62: 1.89
B63: Kruusliiv_2 | C63: kg | D63: =2.5/1000 -> 0.0025 | E63: 5.2 | T63: 1.96
B64: Kruusliiv_3 | C64: kg | D64: 0.0025 | E64: 5 | T64: 1.92
B65: Pinnas | C65: kg | D65: 0.0002 | E65: 1
A66: Taaskasutus
B67: Kiviliiv | C67: kg | D67: 0 | E67: 4
B68: Aheraine | C68: kg | D68: 0.0001 | E68: 3 | U68: Bituumen
B69: Filler | C69: kg | D69: =7.4/1000 -> 0.0074 | E69: 40 | G69: 82.8 | H69: 97 | I69: 99 | J69: 100 | T69: 2.7
B70: RA 0/12 | C70: kg | D70: 0.0024 | E70: 7 | G70: 10.33333333 | H70: 12.33333333 | I70: 15.66666667 | J70: 21.66666667 | K70: 27.66666667 | L70: 34.66666667 | M70: 44.33333333 | N70: 59.33333333 | O70: 72.66666667 | P70: 81.66666667 | Q70: 100 | T70: 2.71 | U70: 3.5
B71: RA 0/8 | C71: kg | D71: 0.0024 | E71: 7 | G71: 10.33333333 | H71: 11 | I71: 15 | J71: 20 | K71: 30 | L71: 40 | M71: 50 | N71: 70 | O71: 95 | P71: 100 | T71: 2.71 | U71: 3.8
B72: Koldetuhk | C72: kg | D72: 0 | E72: 9
B73: CFB | C73: kg | D73: 0.0005 | E73: 9
B74: Lendtuhk | C74: kg | D74: 0.0018 | E74: 9
B75: RA objektil | C75: kg | D75: 0 | E75: 5
A76: Tsement
B77: Tsement, Kunda CEM I 42.5R | C77: kg | D77: 0.721 | E77: 130
B78: Tsement, Kunda CEM I 52.5R | C78: kg | D78: 0.817 | E78: 160
B79: Portland tsement, CEM I 42,5 R ja 52,5 N, Läti | C79: kg | D79: 0.705 | E79: 110
B80: TAS 32.5 (44% CFB tuhka) | C80: kg | D80: 0.446 | E80: 110
B81: Filler | C81: kg | D81: =7.4/1000 -> 0.0074 | E81: 50
B82: Bit 70/100 | C82: kg | D82: =530/1000 -> 0.53 | E82: 428 | T82: 1.03
B83: Bit 100/150 | C83: kg | D83: =530/1000 -> 0.53 | E83: 428 | T83: 1.03
B84: Bit 150/200 | C84: kg | D84: 0.53 | E84: 428 | T84: 1.03
B85: PMB | C85: kg | D85: =610/1000 -> 0.61 | E85: 528 | T85: 1.03
B86: BE 65% | C86: kg | D86: 0.3445 | E86: 350
A88: Materjalid
B89: Alumiinium (esmane) | C89: kg | D89: 18
B90: Vask | C90: kg | D90: 4.2
B91: Roostevaba metall | C91: kg | D91: 3.6
B92: Teras | C92: kg | D92: 2.7
B93: Malm | C93: kg | D93: 1.7
B94: Zn-teras | C94: kg | D94: 3.2
B95: Plasttooted | C95: kg | D95: 2.27
B96: Värvid | C96: kg | D96: 4
B97: Saematerjal (fossiilne) | C97: kg | D97: 0.067
B98: Saematerjal, immutatud | C98: kg | D98: 0.12
A100: Geosünteedid
A101: 7100000705 | B101: Geotekstiil | C101: kg | D101: 3.23
A102: 7100000952 | B102: Bentoniitmatt | C102: kg | D102: 0.815
A103: 7100000953 | B103: Geovõrk, PP | C103: kg | D103: 2.64
A104: 7100000954 | B104: Geovõrk, PET | C104: kg | D104: 3.85
A105: 7100000700 | B105: Plastkiud, PP (kg) | C105: kg | D105: 2.49
A106: 7100001157 | B106: Drenaažmatt (geokärg) | C106: kg | D106: 3.02
B107: Kookosmatt | C107: kg | D107: 0.2
B108: Terasvõrk | C108: kg | D108: 2.7
A111: Betoonsegud
A112: 7100000974 | B112: Betoon C16/20 | C112: m³ | D112: 185
B113: Betoon C16/20 (kg) | C113: kg | D113: 0.074
A114: 7100000001 | B114: Betoon, C20/25 | C114: m³ | D114: 210
B115: Betoon, C20/25 (kg) | C115: kg | D115: 0.088
A116: 7100000002 | B116: Betoon, C25/30 | C116: m³ | D116: 230
B117: Betoon, C25/30 (kg) | C117: kg | D117: 0.096
A118: 7100000003 | B118: Betoon, C30/37 | C118: m³ | D118: 255
B119: Betoon, C30/37 (kg) | C119: kg | D119: 0.106
A120: 7100000004 | B120: Betoon, C35/45 | C120: m³ | D120: 285
B121: betoon, C35/45 (kg) | C121: kg | D121: 0.119
A122: 7100000005 | B122: Betoon, C45/55 | C122: m³ | D122: 320
B123: Betoon, C45/55 (kg) | C123: kg | D123: 0.133
A124: 7100000010 | B124: Betoon, C50/60 | C124: m³ | D124: 395
B125: Betoon, C50/60 (kg) | C125: kg | D125: 0.174
B126: Raudbetoontooted (kg) | C126: kg | D126: 0.16
A128: 7100000911 | B128: Kuivsegud | C128: kg | D128: 0.411
A131: Sillutised
B132: Gr.sillutised & äärekivid, Hiina (koos transpordiga) | C132: kg | D132: 0.241
B133: Gr.sillutised & äärekivid Soome (ilma traspordita) | C133: kg | D133: 0.104
B134: Munakivid | C134: kg | D134: 5e-05

Sheet Masinad
A2: Masina tüüp | B2: Mudel | C2: Kaal | D2: Võimsus | E2: Tootlikus | F2: Maht | G2: Stage | H2: Tunnis | I2: Kasutegur
A3: Masinad
A4: Ekskavaator | B4: 302 | C4: 2 | D4: 15 | E4: =F4*D4*0.53 -> 0.795 | F4: 0.1 | G4: 5 | H4: =D4*I4*(0.6957*G4^-0.095) -> 4.746647507 | I4: 0.53
B5: 305 | C5: 5 | D5: 40 | E5: 6.36 | F5: 0.3 | G5: 5 | H5: 12.65772669 | I5: 0.53
B6: 308 | C6: 8 | D6: 50 | E6: 10.6 | F6: 0.4 | G6: 5 | H6: 15.82215836 | I6: 0.53
B7: 313 | C7: 12 | D7: 60 | E7: 19.08 | F7: 0.6 | G7: 5 | H7: 18.98659003 | I7: 0.53
B8: 316 | C8: 14 | D8: 70 | E8: 24.115 | F8: 0.65 | G8: 5 | H8: 22.1510217 | I8: 0.53
B9: 318 | C9: 17 | D9: 80 | E9: 31.8 | F9: 0.75 | G9: 5 | H9: 25.31545337 | I9: 0.53
B10: 320 | C10: 21 | D10: 100 | E10: 48.23 | F10: 0.91 | G10: 5 | H10: 31.64431672 | I10: 0.53
B11: 326 | C11: 25 | D11: 158 | E11: 102.1628 | F11: 1.22 | G11: 5 | H11: 49.99802041 | I11: 0.53
B12: 330 | C12: 30 | D12: 194 | E12: 165.5402 | F12: 1.61 | G12: 5 | H12: 61.38997443 | I12: 0.53
B13: 336 | C13: 37 | D13: 224 | E13: 241.0016 | F13: 2.03 | G13: 5 | H13: 70.88326944 | I13: 0.53
B14: 345 | C14: 45 | D14: 258 | E14: 318.6042 | F14: 2.33 | G14: 5 | H14: 81.64233713 | I14: 0.53
B15: 352 | C15: 52 | D15: 302 | E15: 528.198 | F15: 3.3 | G15: 5 | H15: 95.56583648 | I15: 0.53
A16: Ratasekskavaator | B16: M314 | C16: 15 | D16: 93 | E16: 4.929 | F16: 0.1 | G16: 5 | H16: 29.42921455 | I16: 0.53
B17: M316 | C17: 17 | D17: 108 | E17: 17.172 | F17: 0.3 | G17: 5 | H17: 34.17586205 | I17: 0.53
B18: M318 | C18: 19.5 | D18: 129 | E18: 27.348 | F18: 0.4 | G18: 5 | H18: 40.82116856 | I18: 0.53
A19: Kopplaadur | B19: 428 | C19: 8.2 | D19: 52 | E19: 27.56 | F19: 1 | G19: 5 | H19: 16.45504469 | I19: 0.53
B20: 432 | C20: 9.8 | D20: 75 | E20: 40.9425 | F20: 1.03 | G20: 5 | H20: 23.73323754 | I20: 0.53
B21: 444 | C21: 10.8 | D21: 82 | E21: 56.498 | F21: 1.3 | G21: 5 | H21: 25.94833971 | I21: 0.53
A22: Frontaallaadur | B22: 906 | C22: 5.7 | D22: 55 | E22: 20.405 | F22: 0.7 | G22: 5 | H22: 17.40437419 | I22: 0.53
B23: 910 | C23: 8.1 | D23: 73 | E23: 46.428 | F23: 1.2 | G23: 5 | H23: 23.1003512 | I23: 0.53
B24: 926 | C24: 12.7 | D24: 127 | E24: 141.351 | F24: 2.1 | G24: 5 | H24: 40.18828223 | I24: 0.53
B25: 938 | C25: 16.1 | D25: 143 | E25: 159.159 | F25: 2.1 | G25: 5 | H25: 45.2513729 | I25: 0.53
B26: 950 | C26: 19.6 | D26: 186 | E26: 325.314 | F26: 3.3 | G26: 5 | H26: 58.85842909 | I26: 0.53
B27: 962 | C27: 20.5 | D27: 202 | E27: 385.416 | F27: 3.6 | G27: 5 | H27: 63.92151977 | I27: 0.53
B28: 966 | C28: 24 | D28: 222 | E28: =F28*D28*0.53 -> 470.64 | F28: 4 | G28: 5 | H28: 70.25038311 | I28: 0.53
B29: 980 | C29: 31.3 | D29: 293 | E29: 885.153 | F29: 5.7 | G29: 5 | H29: 92.71784798 | I29: 0.53
B30: 988 | C30: 51 | D30: 432 | E30: 1465.344 | F30: 6.4 | G30: 5 | H30: 136.7034482 | I30: 0.53
B31: 990 | C31: 81 | D31: 586 | E31: 2670.988 | F31: 8.6 | G31: 5 | H31: 185.435696 | I31: 0.53
A32: Minilaadur | B32: 239 | C32: 3.4 | D32: 50.1 | E32: =F32*0.53*D32 -> 7.9659 | F32: 0.3 | G32: 5 | H32: 15.85380267 | I32: 0.53
B33: 255 | C33: 4.3 | D33: 55.4 | E33: =F33*0.53*D33 -> 11.7448 | F33: 0.4 | G33: 5 | H33: 17.53095146 | I33: 0.53
B34: 275 | C34: 5.6 | D34: 91 | E34: =F34*0.53*D34 -> 21.2212 | F34: 0.44 | G34: 5 | H34: 28.79632821 | I34: 0.53
B35: 226D | C35: 2.7 | D35: 51 | E35: 8.109 | F35: 0.3 | G35: 5 | H35: 16.13860152 | I35: 0.53
B36: 272D | C36: 4.3 | D36: 82 | E36: 17.384 | F36: 0.4 | G36: 5 | H36: 25.94833971 | I36: 0.53
B37: 270D | C37: 4.9 | D37: 91 | E37: 21.2212 | F37: 0.44 | G37: 5 | H37: 28.79632821 | I37: 0.53
A38: Dumper | B38: 725 | C38: 24 | D38: 255 | E38: =D38*0.53*F38/C38 -> 84.46875 | F38: 15 | G38: 5 | H38: 80.69300762 | I38: 0.53
B39: 730 | C39: 28 | D39: 280 | E39: =D39*0.53*F39/C39 -> 92.75 | F39: 17.5 | G39: 5 | H39: 88.6040868 | I39: 0.53
B40: 735 | C40: 32 | D40: 324 | E40: 107.325 | F40: 20 | G40: 5 | H40: 102.5275862 | I40: 0.53
B41: 740 | C41: 38 | D41: 337 | E41: 108.1060526 | F41: 23 | G41: 5 | H41: 106.6413473 | I41: 0.53
B42: 745 | C42: 41 | D42: 381 | E42: 128.0531707 | F42: 26 | G42: 5 | H42: 120.5648467 | I42: 0.53
A43: Traktor kallur | B43: Kubota M6-111 | C43: =4.6+7 -> 11.6 | D43: 81 | E43: 37.00862069 | F43: 10 | G43: 5 | H43: 25.63189654 | I43: 0.53
B44: JCB FASTRAC 4220 | C44: =11.1+7 -> 18.1 | D44: =235/1.343 -> 174.981385 | E44: 51.23764311 | F44: 10 | G44: 5 | H44: 55.37166365 | I44: 0.53
B45: JCB FASTRAC 8330 | C45: =11.1+7 -> 18.1 | D45: =348/1.343 -> 259.1213701 | E45: 75.87531831 | F45: 10 | G45: 5 | H45: 81.99718702 | I45: 0.53
B46: MF 6713 | C46: =5.2+7 -> 12.2 | D46: =130/1.343 -> 96.79821296 | E46: 42.05168268 | F46: 10 | G46: 5 | H46: 30.63113308 | I46: 0.53
B47: MF 8735 | C47: =10.8+7 -> 17.8 | D47: =300/1.343 -> 223.3804914 | E47: 66.5121688 | F47: 10 | G47: 5 | H47: 70.68723019 | I47: 0.53
G48: 5 | H48: 0 | I48: 0.53
G49: 5 | H49: 0 | I49: 0.53
A50: Buldooser | B50: D1 | C50: 8.1 | D50: 59.7 | E50: =F50*60*0.53 -> 73.14 | F50: 2.3 | G50: 5 | H50: 18.89165708 | I50: 0.53
B51: D2 | C51: 8.5 | D51: 68.8 | E51: =F51*60*0.53 -> 82.68 | F51: 2.6 | G51: 5 | H51: 21.7712899 | I51: 0.53
B52: D3 | C52: 9.4 | D52: 77.6 | E52: =F52*60*0.53 -> 95.4 | F52: 3 | G52: 5 | H52: 24.55598977 | I52: 0.53
B53: D4 | C53: 14 | D53: 119 | E53: 120.84 | F53: 3.8 | G53: 5 | H53: 37.65673689 | I53: 0.53
B54: D5 | C54: 19.2 | D54: 127 | E54: 127.2 | F54: 4 | G54: 5 | H54: 40.18828223 | I54: 0.53
B55: D6 | C55: 24 | D55: 187 | E55: 219.42 | F55: 6.9 | G55: 5 | H55: 59.17487226 | I55: 0.53
B56: D7 | C56: 29.8 | D56: 197 | E56: 265.212 | F56: 8.34 | G56: 5 | H56: 62.33930393 | I56: 0.53
B57: D8 | C57: 40 | D57: 296 | E57: 327.54 | F57: 10.3 | G57: 5 | H57: 93.66717748 | I57: 0.53
B58: D9 | C58: 50 | D58: 337 | E58: 429.3 | F58: 13.5 | G58: 5 | H58: 106.6413473 | I58: 0.53
B59: D10 | C59: 70.2 | D59: 449 | E59: 699.6 | F59: 22 | G59: 5 | H59: 142.0829821 | I59: 0.53
B60: D11 | C60: 106.8 | D60: 757 | E60: 864.96 | F60: 27.2 | G60: 5 | H60: 239.5474775 | I60: 0.53
A61: Greider | B61: 120 | C61: 15.9 | D61: 97 | E61: =F61*0.53*D61 -> 190.217 | F61: 3.7 | G61: 5 | H61: 30.69498721 | I61: 0.53
B62: 140 | C62: 19.3 | D62: 133 | E62: =F62*0.53*D62 -> 260.813 | F62: 3.7 | G62: 5 | H62: 42.08694123 | I62: 0.53
B63: 150 | C63: 19.9 | D63: 149 | E63: =F63*0.53*D63 -> 292.189 | F63: 3.7 | G63: 5 | H63: 47.15003191 | I63: 0.53
B64: 160 | C64: 20.7 | D64: 165 | E64: 367.29 | F64: 4.2 | G64: 5 | H64: 52.21312258 | I64: 0.53
B65: 14 | C65: 26 | D65: 178 | E65: 405.662 | F65: 4.3 | G65: 5 | H65: 56.32688375 | I65: 0.53
B66: 16 | C66: 32.4 | D66: 216 | E66: 560.952 | F66: 4.9 | G66: 5 | H66: 68.35172411 | I66: 0.53
B67: 18 | C67: 33.7 | D67: 227 | E67: 661.705 | F67: 5.5 | G67: 5 | H67: 71.83259894 | I67: 0.53
B68: 24 | C68: 75 | D68: 399 | E68: 1543.731 | F68: 7.3 | G68: 5 | H68: =D68*I68*(0.6957*G68^-0.095) -> 126.2608237 | I68: 0.53
B69: 620 | C69: 15.7 | D69: 160 | E69: 313.76 | F69: 3.7 | G69: 5 | H69: 50.63090674 | I69: 0.53
B70: 672 | C70: 22.4 | D70: 190 | E70: 422.94 | F70: 4.2 | G70: 5 | H70: 60.12420176 | I70: 0.53
A71: Pinnasetihendaja | B71: CP5 | C71: 4.7 | D71: 55.6 | E71: =D71*0.53*F71*2 -> 76.6168 | F71: 1.3 | G71: 5 | H71: 17.59424009 | I71: 0.53
B72: CP7 | C72: 7.7 | D72: 74.4 | E72: =D72*0.53*F72*2 -> 134.0688 | F72: 1.7 | G72: 5 | H72: 23.54337164 | I72: 0.53
B73: CS10 | C73: 10.5 | D73: 92 | E73: 214.544 | F73: 2.2 | G73: 5 | H73: 29.11277138 | I73: 0.53
B74: CS11 | C74: 11.2 | D74: 91.7 | E74: 204.1242 | F74: 2.1 | G74: 5 | H74: 29.01783843 | I74: 0.53
B75: CS12 | C75: 11.5 | D75: 119 | E75: 264.894 | F75: 2.1 | G75: 5 | H75: 37.65673689 | I75: 0.53
B76: CS14 | C76: 14.6 | D76: 119 | E76: 264.894 | F76: 2.1 | G76: 5 | H76: 37.65673689 | I76: 0.53
B77: CS16 | C77: 16.1 | D77: 131 | E77: 291.606 | F77: 2.1 | G77: 5 | H77: 41.4540549 | I77: 0.53
B78: CS19 | C78: 18.9 | D78: 131 | E78: 291.606 | F78: 2.1 | G78: 5 | H78: 41.4540549 | I78: 0.53
A79: Frees | B79: PM310 | C79: 21.2 | D79: 256 | E79: =D79*0.53*F79 -> 135.68 | F79: 1 | G79: 5 | H79: 81.00945079 | I79: 0.53
B80: PM313 | C80: 21.6 | D80: 256 | E80: 176.384 | F80: 1.3 | G80: 5 | H80: 81.00945079 | I80: 0.53
B81: PM620 | C81: 31.5 | D81: 474 | E81: 502.44 | F81: 2 | G81: 5 | H81: 149.9940612 | I81: 0.53
B82: PM820 | C82: 34.1 | D82: 601 | E82: 637.06 | F82: 2 | G82: 5 | H82: 190.1823435 | I82: 0.53
B83: RM822 | C83: 34.6 | D83: 601 | E83: 700.766 | F83: 2.2 | G83: 5 | H83: 190.1823435 | I83: 0.53
A84: Stabilisaator | B84: RM400 | C84: 26.2 | D84: 310 | E84: =D84*0.53*F84 -> 400.892 | F84: 2.44 | G84: 5 | H84: 98.09738182 | I84: 0.53
B85: RM500 | C85: 31.5 | D85: 407 | E85: =D85*0.53*F85 -> 526.3324 | F85: 2.44 | G85: 5 | H85: 128.792369 | I85: 0.53
B86: RM600 | C86: 36 | D86: 474 | E86: =D86*0.53*F86 -> 612.9768 | F86: 2.44 | G86: 5 | H86: 149.9940612 | I86: 0.53
B87: RM800 | C87: 34.4 | D87: 568 | E87: =D87*0.53*F87 -> 734.5376 | F87: 2.44 | G87: 5 | H87: 179.7397189 | I87: 0.53
B88: WR 240 | C88: 30.6 | D88: 455 | E88: =D88*0.53*F88 -> 588.406 | F88: 2.44 | G88: 5 | H88: 143.9816411 | I88: 0.53
B89: WR250 | C89: 31.7 | D89: 563 | E89: 716.136 | F89: 2.4 | G89: 5 | H89: 178.1575031 | I89: 0.53
B90: WS250 | C90: 3 | D90: 250 | E90: =D90*0.53*F90 -> 323.3 | F90: 2.44 | G90: 5 | H90: 79.11079179 | I90: 0.53
A91: Tsemendi laoturid | B91: SW 10 TA | C91: 4.8 | D91: =D149 -> 81 | E91: =D91/F91*2.5 -> 20.25 | F91: 10 | G91: 5 | H91: 25.63189654 | I91: 0.53
B92: SW 112 TC | C92: 6.2 | D92: =D152 -> 96.79821296 | E92: =D92/F92*3 -> 24.19955324 | F92: 12 | G92: 5 | H92: 30.63113308 | I92: 0.53
B93: SW 218 TC | C93: 8.4 | D93: =D153 -> 223.3804914 | E93: =D93/F93*3 -> 37.23008191 | F93: 18 | G93: 5 | H93: 70.68723019 | I93: 0.53
A94: Purusti | B94: Finlay C-1540 | C94: 33.35 | D94: 257 | E94: =D94*0.25 -> 64.25 | F94: 5 | G94: 5 | H94: 81.32589396 | I94: 0.53
B95: Finlay C-1540RS | C95: 51.1 | D95: 328 | E95: =D95*0.25 -> 82 | F95: 5 | G95: 5 | H95: 103.7933588 | I95: 0.53
B96: Finlay C1554 | C96: 61 | D96: 571 | E96: =D96*0.25 -> 142.75 | F96: 8 | G96: 5 | H96: 180.6890484 | I96: 0.53
B97: Finlay I-140 | C97: 48.7 | D97: 403 | E97: 100.75 | F97: 6 | G97: 5 | H97: =D97*I97*(0.6957*G97^-0.095) -> 127.5265964 | I97: 0.53
B98: Finlay J-1160 | C98: 35.4 | D98: 205 | E98: 51.25 | F98: 5 | G98: 5 | H98: =D98*I98*(0.6957*G98^-0.095) -> 64.87084927 | I98: 0.53
B99: Finlay J-1175 Hybrid | C99: 54.3 | D99: 257 | E99: 64.25 | F99: 9 | G99: 5 | H99: =D99*I99*(0.6957*G99^-0.095) -> 81.32589396 | I99: 0.53
B100: Finlay J-1480 | C100: 79.45 | D100: 331 | E100: 82.75 | F100: 10 | G100: 5 | H100: =D100*I100*(0.6957*G100^-0.095) -> 104.7426883 | I100: 0.53
B101: McCloskey J40 | C101: 36.9 | D101: 187 | E101: 46.75 | G101: 5 | H101: =D101*I101*(0.6957*G101^-0.095) -> 59.17487226 | I101: 0.53
B102: McCloskey J50 | C102: 58.7 | D102: 265 | E102: 66.25 | G102: 5 | H102: 83.8574393 | I102: 0.53
B103: Metso LT 96 | C103: 29 | D103: 168 | E103: 42 | G103: 5 | H103: 53.16245208 | I103: 0.53
B104: Metso LT 220 | C104: 46 | D104: 310 | E104: 77.5 | G104: 5 | H104: 98.09738182 | I104: 0.53
A105: Sõel | B105: Finlay 683 | C105: 18.3 | D105: 82 | E105: =F105/D105*1000 -> 203.5317073 | F105: =3.66*1.52*3 -> 16.6896 | G105: 5 | H105: 25.94833971 | I105: 0.53
B106: Finlay 674 | C106: 28.5 | D106: 98.1 | E106: =F106/D106*1000 -> 167.4311927 | F106: =3.65*1.5*3 -> 16.425 | G106: 5 | H106: 31.0430747 | I106: 0.53
B107: Finlay 694 | C107: 39.3 | D107: 98 | E107: 285.7040816 | F107: =6.1*1.53*3 -> 27.999 | G107: 5 | H107: 31.01143038 | I107: 0.53
B108: Finlay 984 | C108: 43.1 | D108: 82 | E108: 267.4390244 | F108: =4.3*1.7*3 -> 21.93 | G108: 5 | H108: 25.94833971 | I108: 0.53
B109: PS Warrior 2100 | C109: 34.8 | D109: 130 | E109: 170.7692308 | F109: 22.2 | G109: 5 | H109: 41.13761173 | I109: 0.53
B110: Metso ST2.875+100kw | C110: 28 | D110: =2*37.5 -> 75 | E110: 296 | F110: =7.4*3 -> 22.2 | G110: 5 | H110: 23.73323754 | I110: 0.53
B111: McCloskey R70 | C111: 15.4 | D111: 97 | E111: 201.0309278 | F111: =6.5*3 -> 19.5 | G111: 5 | H111: 30.69498721 | I111: 0.53
B112: McCloskey R155 | C112: 32.7 | D112: 98 | E112: 151.877551 | F112: =4.88*1.525*2 -> 14.884 | G112: 5 | H112: 31.01143038 | I112: 0.53
B113: McCloskey R230 | C113: 37.2 | D113: 168 | E113: 127.3809524 | F113: 21.4 | G113: 5 | H113: 53.16245208 | I113: 0.53
B114: McCloskey S130 | C114: 32 | D114: 98 | E114: 199.2085714 | F114: =3*(4.27*1.524) -> 19.52244 | G114: 5 | H114: 31.01143038 | I114: 0.53
B115: McCloskey S230 | C115: 39.5 | D115: 168 | E115: 199.3392857 | F115: =6.1*1.83*3 -> 33.489 | G115: 5 | H115: 53.16245208 | I115: 0.53
A116: Pumpamine/ pesemine | B116: ASP 14/12GG | C116: 160 | D116: 1200 | E116: =C116*F116 -> 108.8 | F116: 0.68 | H116: =D116*$L$117*I116 -> 454.85448 | I116: 0.53
B117: ASP 16/14GG | C117: 200 | D117: 1200 | E117: 200 | F117: 0.7 | H117: =D117*$L$117*I117 -> 454.85448 | I117: 0.53 | K117: Elekter | L117: 0.71518
B118: ASP 16/14TU | C118: 90 | D118: 1200 | E118: 90 | F118: 0.72 | H118: =D118*$L$117*I118 -> 454.85448 | I118: 0.53
B119: ASP 18/16GG | C119: 200 | D119: 310 | E119: 200 | F119: 0.72 | H119: =D119*$L$117*I119 -> 117.504074 | I119: 0.53
A120: Pesemine | B120: Fraccaroli&Balzani FB 1500 4P-120 | C120: =E120*0.8 -> 80 | D120: 150 | E120: 100 | F120: 6 | H120: =D120*$L$117*I120 -> 56.85681 | I120: 0.53
B121: Flokulant AN910MF (0.0001/1) 75kgCO2/kg | H121: 10 | I121: 0.53
A122: Eelsöötja | B122: MT3000 | C122: 19.7 | D122: 160 | E122: =D122*0.53*C122 -> 1670.56 | G122: 5 | H122: =D122*I122*(0.6957*G122^-0.095) -> 50.63090674 | I122: 0.53
B123: WR MT 3000-2i | C123: 19 | D123: 139 | E123: =D123*0.53*C123 -> 1399.73 | G123: 5 | H123: 43.98560023 | I123: 0.53
A124: Asf.laotur | B124: AP455 | C124: 14.3 | D124: 90 | E124: =D124*F124 -> 450 | F124: 5 | G124: 5 | H124: 28.47988504 | I124: 0.53
B125: AP655 | C125: 18.4 | D125: 129 | E125: 645 | F125: 5 | G125: 5 | H125: 40.82116856 | I125: 0.53
B126: AP105 | C126: 20.4 | D126: 168 | E126: 1008 | F126: 6 | G126: 5 | H126: 53.16245208 | I126: 0.53
B127: 0.9m | C127: 1.44 | D127: 10.2 | E127: 18.36 | F127: 1.8 | G127: 5 | H127: 3.227720305 | I127: 0.53
B128: 1.33m | C128: 6.5 | D128: 55.4 | E128: 138.5 | F128: 2.5 | G128: 5 | H128: 17.53095146 | I128: 0.53
B129: 2.5m | C129: 18.7 | D129: 129 | E129: 645 | F129: 5 | G129: 5 | H129: 40.82116856 | I129: 0.53
B130: 2.55m | C130: 23.3 | D130: 187 | E130: =D130*F130 -> 1028.5 | F130: 5.5 | G130: 5 | H130: 59.17487226 | I130: 0.53
B131: 3.0m | C131: 30.9 | D131: 354 | E131: =D131*F131 -> 2124 | F131: 6 | G131: 5 | H131: 112.0208812 | I131: 0.53
A132: Kuumuti | B132: Wirtgen HM 4500 | C132: 19.7 | D132: 75 | E132: =D132*4.5 -> 337.5 | F132: 2260 | G132: 5 | H132: 23.73323754 | I132: 0.53 | J132: >>> | K132: Põleti arvestus
B133: Wirtgen HM 1500 | C133: 10 | D133: 50 | E133: =D133*4.5 -> 225 | F133: =2261/4 -> 565.25 | G133: 5 | H133: 15.82215836 | I133: 0.53 | N133: Alg temp | O133: 50
B134: Remixer 1200 | C134: 10 | D134: 90 | E134: =D134*4.5 -> 405 | F134: =F135/4 -> 361.25 | G134: 5 | H134: 28.47988504 | I134: 0.53 | N134: Lõpp temp | O134: 180
A135: Remixer | B135: Remixer 4500 | C135: 47.9 | D135: 240 | E135: =D135*4.5 -> 1080 | F135: 1445 | G135: 5 | H135: 75.94636012 | I135: 0.53 | N135: ΔT= | O135: =O134-O133 -> 130
A136: Külmsegur | B136: KMA220 | C136: 29.8 | D136: 129.4 | E136: 220 | G136: 5 | H136: 40.94774583 | I136: 0.53 | N136: Kihi paksus | O136: 0.05
B137: KMA220i | C137: 29.95 | D137: 129 | E137: 220 | G137: 5 | H137: 40.82116856 | I137: 0.53 | N137: Asfalt tihedus= | O137: 2.5
A138: Asf.rull | B138: HD8 | C138: 1.6 | D138: 16.1 | E138: =D138*0.53*C138*F138*8 -> 87.37792 | F138: 0.8 | G138: 5 | H138: 5.094734991 | I138: 0.53 | N138: Erisoojus asfalt= | O138: 0.96
B139: HD13 | C139: 4.6 | D139: 37.4 | E139: =D139*0.53*C139*F139 -> 118.53556 | F139: 1.3 | G139: 5 | H139: 11.83497445 | I139: 0.53 | N139: Laius | O139: 1
B140: HD+70 | C140: 7.4 | D140: 55.4 | E140: 325.9182 | F140: 1.5 | G140: 5 | H140: 17.53095146 | I140: 0.53 | N140: Pikkus | O140: 1
B141: HD+80 | C141: 7.8 | D141: 55.4 | E141: 389.34012 | F141: 1.7 | G141: 5 | H141: 17.53095146 | I141: 0.53 | N141: m= | O141: =(O139*O140)*O136*O137 -> 0.125
B142: HD+90 | C142: 9.5 | D142: 85 | E142: 727.5575 | F142: 1.7 | G142: 5 | H142: 26.89766921 | I142: 0.53 | K142: LPG | L142: 0.54 | M142: 46 | N142: Vajalik soojus Q= | O142: =O135*O141*O138 -> 15.6
B143: HD+110 | C143: 12.6 | D143: 115 | E143: 1535.94 | F143: 2 | G143: 5 | H143: 36.39096422 | I143: 0.53 | L143: 1 | M143: 3.6 | N143: Qgaas= | O143: =O142/M144 -> 19.5
B144: HD+140 | C144: 13.1 | D144: 115 | E144: 1676.7345 | F144: 2.1 | G144: 5 | H144: 36.39096422 | I144: 0.53 | M144: 0.8 | N144: gaasi kulu (kg)= | O144: =O143/M142 -> 0.4239130435 | P144: 4 | Q144: =P144*60 -> 240
A145: Pneumorull | B145: HD18 | C145: 8.5 | D145: 55.4 | E145: =D145*0.53*C145*F145 -> 449.2386 | F145: 1.8 | G145: 5 | H145: 17.53095146 | I145: 0.53 | L145: Soojusvõimsus | M145: =((F132*$M$143)/$M$142)/($P$144*60) -> 0.7369565217 | N145: =M145/Q145 -> 0.1637681159 | Q145: 4.5
B146: HD28 | C146: 9.5 | D146: 85 | E146: =D146*0.53*C146*F146 -> 770.355 | F146: 1.8 | G146: 5 | H146: 26.89766921 | I146: 0.53 | L146: Soojusvõimsus | M146: =((F133*$M$143)/$M$142)/($P$144*60) -> 0.1843206522 | N146: =M146/Q146 -> 0.04096014493 | Q146: 4.5
A147: Gudronaator | B147: DAF 75 | C147: 13 | D147: 180 | E147: =D147/0.5*F147 -> 1620 | F147: 4.5 | G147: 5 | H147: 56.95977009 | I147: 0.53
B148: Weiro TM800 SH | C148: 1.9 | D148: 22 | E148: =D148/0.5*F148 -> 110 | F148: 2.5 | G148: 5 | H148: 6.961749677 | I148: 0.53 | L148: Soojusvõimsus | M148: =((F135*$M$143)/$M$142)/($P$144*60) -> 0.4711956522 | N148: =M148/Q148 -> 0.1047101449 | Q148: 4.5
A149: Traktor | B149: Kastmismasin | C149: 4.6 | D149: 81 | G149: 5 | H149: 25.63189654 | I149: 0.53 | N149: =SUM(N145:N148) -> 0.3094384058 | O149: =N149-O144 -> -0.1144746377 | P149: =(((160-40)*((1*1)*0.05*2.5)*0.96)/0.8)/$M$142 -> 0.3913043478
B150: JCB FASTRAC 4220 | C150: 11.1 | D150: =235/1.343 -> 174.981385 | G150: 5 | H150: 55.37166365 | I150: 0.53
B151: JCB FASTRAC 8330 | C151: 11.1 | D151: =348/1.343 -> 259.1213701 | G151: 5 | H151: 81.99718702 | I151: 0.53
B152: MF 6713 | C152: 5.2 | D152: =130/1.343 -> 96.79821296 | G152: 5 | H152: 30.63113308 | I152: 0.53
B153: MF 8735 | C153: 10.8 | D153: =300/1.343 -> 223.3804914 | G153: 5 | H153: 70.68723019 | I153: 0.53
A155: Käsitööriistad
A156: Vibroplaat | D156: 7.5 | G156: 5 | H156: =D156*I156*(0.6957*G156^-0.095) -> 4.477969347 | I156: 1
A157: Generaator | D157: 66 | G157: 5 | H157: 39.40613025 | I157: 1
A159: Lõhketööd
A160: Puurseade | B160: Atlas Flexi ROC D50-10SF | C160: 24.3 | D160: 287 | G160: 5 | H160: =D160*I160*(0.6957*G160^-0.095) -> 90.81918897 | I160: 0.53
B161: Atlas ROC L6/25 | C161: 21.7 | D161: 287 | G161: 5 | H161: 90.81918897 | I161: 0.53
B162: Sandvik DX700 | C162: 14.8 | D162: 168 | E162: =F162*I162/2.7 -> 270.8888889 | F162: =23*60 -> 1380 | G162: 5 | H162: 53.16245208 | I162: 0.53
B163: Sandvik DX 800 | C163: 15.7 | D163: 168 | G163: 5 | H163: 53.16245208 | I163: 0.53
B164: Sandvik DI600 | C164: 28.5 | D164: 403 | G164: 5 | H164: 127.5265964 | I164: 0.53
A166: Betoonipump | B166: Pumi 25 | D166: 265 | E166: 60 | G166: 6
B167: Pumi 28 | D167: 290 | E167: 80 | G167: 6
B168: Putzmeister M56 | D168: 375 | E168: 100 | G168: 6
A170: Masin | B170: Koorem | C170: Autorong | D170: Võimsus | E170: Veduk | F170: Käru 1 | G170: Euro
A171: Kastmismasin | B171: =C171-E171-F171 -> 13 | C171: 28 | D171: 250 | E171: 15 | G171: 6
A172: Multilift | B172: 15 | C172: 30 | D172: 250 | E172: 15 | G172: 6
A173: Poolhaage | B173: 28 | C173: 44 | D173: 330 | E173: 9 | F173: 7 | G173: 6
A174: Täishaage | B174: 17 | C174: 32 | D174: 250 | E174: 15 | G174: 6
A175: Täishaage | B175: 13 | C175: 26 | D175: 280 | E175: 13 | G175: 6
A176: Tsistern | B176: 27 | C176: 44 | D176: 330 | E176: 9 | F176: 8 | G176: 6
A177: Treiler | B177: 44 | C177: 70 | D177: 650 | E177: 11 | F177: 15 | G177: 6

Sheet Tööde arvutus
C1: Stage | D1: Euro | E1: 28 | F1: 13
C2: 5 | D2: 6 | E2: 330 | F2: 250
E3: kg CO2e | F3: Ühik
B4: ID
A5: KS32 | B5: =GWP!A138 -> 41101 | C5: 100000 | D5: 15 | E5: =F5/C5*1000 -> 10.63304215 | F5: =SUM(F10:F31) -> 1063.304215 | G5: 1cm = | AA5: =F5/C5/D5*1000 -> 0.7088694768
A9: Pae, 16/32 | B9: 50 | C9: 2.3 | D9: =C9*C5*D5/100/2 -> 17250 | E9: =_xlfn.XLOOKUP(A9,Materjal!$B$2:$B$253,Materjal!$D$2:$D$253)*1000 -> 3.3 | F9: =D9*E9/1000 -> 56.925
A10: RA objektil | B10: 5 | C10: 2.3 | D10: =C10*C5*D5/100/2 -> 17250 | E10: =_xlfn.XLOOKUP(A10,Materjal!$B$2:$B$253,Materjal!$D$2:$D$253)*1000 -> 0 | F10: =D10*E10/1000 -> 0
A11: Tsement, Kunda CEM I 42.5R | B11: 50 | C11: 2.5 | D11: =(D10+D9)*C11/100 -> 862.5 | E11: =_xlfn.XLOOKUP(A11,Materjal!$B$2:$B$253,Materjal!$D$2:$D$253)*1000 -> 721 | F11: =D11*E11/1000 -> 621.8625
A12: Bit 70/100 | B12: 370 | C12: 1.5 | D12: =(D9+D10)*C12/100 -> 517.5 | E12: =_xlfn.XLOOKUP(A12,Materjal!$B$2:$B$253,Materjal!$D$2:$D$253)*1000 -> 530 | F12: 274.275
A13: =$E$1 -> 28 | B13: =$E$2 -> 330 | C13: =D9 -> 17250 | D13: =B9 -> 50 | E13: =((B13* IF(OR(ISTEXT(D13),D13<5),0.52, IF(D13<50,MAX(-0.0014*D13+0.46,0.39), IF(D13<=100,(-0.0014*D13+0.45),0.31))) *(0.6957*$D$2^-0.088)/(A13*80/2))) -> 0.06653102389 | F13: =C13*D13*E13/1000 -> 57.38300811
A14: =$E$1 -> 28 | B14: =$E$2 -> 330 | C14: =D10 -> 17250 | D14: =B10 -> 5 | E14: =((B14* IF(OR(ISTEXT(D14),D14<5),0.52, IF(D14<50,MAX(-0.0014*D14+0.46,0.39), IF(D14<=100,(-0.0014*D14+0.45),0.31))) *(0.6957*$D$2^-0.088)/(A14*80/2))) -> 0.07931198374 | F14: =C14*D14*E14/1000 -> 6.840658598
A15: =$E$1 -> 28 | B15: 330 | C15: =D11 -> 862.5 | D15: =B11 -> 50 | E15: =((B15* IF(OR(ISTEXT(D15),D15<5),0.52, IF(D15<50,MAX(-0.0014*D15+0.46,0.39), IF(D15<=100,(-0.0014*D15+0.45),0.31))) *(0.6957*$D$2^-0.088)/(A15*80/2))) -> 0.06653102389 | F15: =C15*D15*E15/1000 -> 2.869150405
A16: =$E$1 -> 28 | B16: 330 | C16: =D12 -> 517.5 | D16: =B12 -> 370 | E16: 0.05427530896 | F16: 10.39236478
A17: Laadimine
A18: Ekskavaator | B18: 100 | C18: =Masinad!$E$10 -> 48.23 | D18: =D9/C18 -> 357.6612067 | E18: =B18*0.53*(0.6957*$C$2^-0.095) -> 31.64431672 | F18: =E18*D18/1000 -> 11.3179445
A19: Frontaallaadur | B19: 159 | C19: =Masinad!$E$25 -> 159.159 | D19: =D10/C19 -> 108.3821839 | E19: =B19*0.53*(0.6957*$C$2^-0.095) -> 50.31446358 | F19: =E19*D19/1000 -> 5.453191442
A20: Killustik
A21: Buldooser | B21: 127 | C21: =Masinad!$E$54 -> 127.2 | D21: =D9/C21 -> 135.6132075 | E21: =B21*0.53*(0.6957*$C$2^-0.095) -> 40.18828223 | F21: =E21*D21/1000 -> 5.450061859
A22: Pinnasetihendaja | B22: 119 | C22: =Masinad!$E$76 -> 264.894 | D22: =D21 -> 135.6132075 | E22: =B22*0.53*(0.6957*$C$2^-0.095) -> 37.65673689 | F22: =D22*E22/1000 -> 5.106750876
A23: RA
A24: Buldooser | B24: 127 | C24: =Masinad!$E$54 -> 127.2 | D24: =D10/C10/C24 -> 58.96226415 | E24: =B24*0.53*(0.6957*$C$2^-0.095) -> 40.18828223 | F24: =D24*E24/1000 -> 2.369592113
A25: Pinnasetihendaja | B25: 119 | C25: =Masinad!$E$76 -> 264.894 | D25: =D24 -> 58.96226415 | E25: =B25*0.53*(0.6957*$C$2^-0.095) -> 37.65673689 | F25: =D25*E25/1000 -> 2.220326468
A26: Segamine
A27: Tsemendi laoturid | B27: 97 | C27: =Masinad!E92 -> 24.19955324 | D27: =D11/C27 -> 35.64115385 | E27: =B27*0.53*(0.6957*$C$2^-0.095) -> 30.69498721 | F27: =D27*E27/1000 -> 1.094004762
A28: Stabilisaator | B28: 563 | C28: =Masinad!$E$89 -> 716.136 | D28: =C5/C28 -> 139.638281 | E28: =B28*0.53*(0.6957*$C$2^-0.095) -> 178.1575031 | F28: =D28*E28/1000 -> 24.87760748
A29: Greider | B29: 165 | C29: =Masinad!$E$64 -> 367.29 | D29: =C5/C29 -> 272.2644232 | E29: =B29*0.53*(0.6957*$C$2^-0.095) -> 52.21312258 | F29: =D29*E29/1000 -> 14.2157757
A30: Pinnasetihendaja | B30: 119 | C30: =Masinad!$E$76 -> 264.894 | D30: =C5/C30 -> 377.5094944 | E30: =B30*0.53*(0.6957*$C$2^-0.095) -> 37.65673689 | F30: =D30*E30/1000 -> 14.2157757
A31: Kastmismasin | B31: 81 | D31: =D28 -> 139.638281 | E31: =B31*0.5*(0.6957*$D$2^-0.088) -> 24.06576749 | F31: =E31*D31/1000 -> 3.360502404

Sheet GWP
A4: Artikli nr | B4: Makseartikli nimetus | C4: Parameetrid | D4: Mõõtühik | E4: Maht | F4: kg/CO2e | G4: Kokku
A6: KULUDE LOEND NR 1: ÜLDISED
A7: Artikli nr | B7: Makseartikli nimetus | C7: Parameetrid | D7: Mõõtühik | E7: Maht | F7: Ühikhind | G7: Maksumus
A8: 10201 | B8: Proovivõtt ja katsetamine | D8: kogusumma
A9: 10202 | B9: Load, kindlustused | D9: kogusumma
A10: 10204 | B10: Tööpiirkonna ja teede korrashoid | D10: kogusumma
A11: 10210 | B11: Ajutised tööd (sh. objektikontorid, ajutised teed) | D11: kogusumma
A12: 10211 | B12: Tööde mõõdistamine ja märkimistööd | D12: kogusumma
A13: 10212 | B13: Konsultatsioonid projekteerijaga | D13: kogusumma
A14: 10214 | B14: Tööprojektide ja tööjooniste koostamine | D14: kogusumma
A15: 10215 | B15: Muud tööd | D15: kogusumma
A16: 10216 | B16: …..
F18: Summa kantud kokkuvõttesse | G18: =SUM(G8:G17) -> 0
A20: KULUDE LOEND NR 2: EHITUSOBJEKTI ETTEVALMISTAMINE
A21: Artikli nr | B21: Makseartikli nimetus | C21: Parameetrid | D21: Mõõtühik | E21: Maht | F21: kg/CO2e | G21: Kokku
A22: 20101 | B22: Ettevalmistustööd | D22: kogusumma | G22: =E22*F22 -> 0
A23: 20201 | B23: Raadamine ja juurimine | C23: 1 | D23: m² | F23: =$F$75/100*C23 -> 0.017 | G23: 0
A24: 20202 | B24: Raadamine, juurimine ja tee-maa-ala puhastamine | D24: kogusumma | G24: 0
A25: 20203 | B25: Raadamine | D25: m2 | G25: 0
A26: 20204 | B26: Sanitaar- ja harvendusraie | D26: tk | G26: 0
A27: 20205 | B27: Sanitaar- ja harvendusraie | D27: m2 | G27: 0
A28: 20206 | B28: Üksikpuude langetamine | D28: tk | G28: 0
A29: 20207 | B29: Üksikpuude kändude juurimine (freesimine) | D29: tk | G29: 0
A30: 20208 | B30: Üksikpuude langetamine koos kändude juurimisega (freesimisega) | D30: tk | G30: 0
A31: 20209 | B31: Puude võra piiramine | D31: tk | G31: 0
A32: 20210 | B32: Puude võra piiramine | D32: m2 | G32: 0
A33: 20211 | B33: Juurimine | C33: 1 | D33: m² | F33: =$F$75/100*C33 -> 0.017 | G33: 0
A34: 20212 | B34: Teemaa-ala puhastamine | D34: m2 | G34: 0
A35: 20301 | B35: Liiklusmärgi eemaldamine (koos postidega, vundamentidega jne.) | D35: tk | G35: 0
A36: 20302 | B36: Tahvli eemaldamine (koos postidega, vundamentidega jne.) | D36: tk | G36: 0
A37: 20303 | B37: Raamide eemaldamine | D37: tk | G37: 0
A38: 20304 | B38: Konsoolide eemaldamine | D38: tk | G38: 0
A39: 20305 | B39: Tähispostide eemaldamine | D39: tk | G39: 0
A40: 20306 | B40: Truupide demonteerimine | D40: m | G40: 0
A41: 20307 | B41: Sadevete äravoolutorude lammutamine | D41: m | G41: 0
A42: 20308 | B42: Settekaevude lammutamine | D42: tk | G42: 0
A43: 20309 | B43: Betoonist kontrollkaevu lammutamine | D43: tk | G43: 0
A44: 20310 | B44: Truubi päiste lammutamine | D44: tk | G44: 0
A45: 20311 | B45: Bussipeatuste lammutamine (koos ootekojaga, äärekivide, vundamendiga jne) | D45: tk | G45: 0
A46: 20312 | B46: Liiklussaarte lammutamine (koos äärekivide, vundamentidega jne) | C46: 1 | D46: m² | F46: =$F$75/100*C46 -> 0.017 | G46: 0
A47: 20313 | B47: Äärekivide lammutamine | D47: m | G47: 0
A48: 20314 | B48: Parkettkivikatte lammutamine | C48: 1 | D48: m² | F48: =$F$75/100*C48 -> 0.017 | G48: 0
A49: 20315 | B49: Hoonete lammutamine (koos vundamendiga) | D49: m3 | G49: 0
A50: 20316 | B50: Põrkepiirde eemaldamine (koos postidega) | D50: m | G50: 0
A51: 20317 | B51: Torupiirde eemaldamine | D51: m | G51: 0
A52: 20318 | B52: Konstruktsioonide lammutamine | D52: m3 | G52: 0
A53: 20319 | B53: Konstruktsioonide ümbertõstmine (kirjeldus) | D53: m3 | G53: 0
A54: 20320 | B54: Eriehitiste lammutamine (kirjeldus) | D54: m2 | G54: 0
A55: 20321 | B55: Võrkaia lammutamine (koos vundamendiga) | D55: m | G55: 0
A56: 20322 | B56: Okastraataia lammutamine | D56: m | G56: 0
A57: 20323 | B57: Aia ümbertõstmine (okastraat, võrk, jne) | D57: m | G57: 0
A58: 20324 | B58: Õhuliini postide ümberpaigutamine | D58: tk | G58: 0
A59: 20325 | B59: Konstruktsioonide ja teepäraldiste lammutamine, demonteerimine ja ümberpaigutamine | D59: kogusumma | G59: 0
A60: 20326 | B60: Kattemärgistuse (värv) eemaldamine (kirjeldus) | C60: 1 | D60: m2 | F60: =0.04*C60 -> 0.04 | G60: 0
A61: 20327 | B61: Kattemärgistuse (pritsplastik) eemaldamine (kirjeldus) | C61: 1 | D61: m2 | F61: =0.04*C61 -> 0.04 | G61: 0
A62: 20328 | B62: Kattemärgistuse (valuplastik) eemaldamine (kirjeldus) | C62: 1 | D62: m2 | F62: =0.04*C62 -> 0.04 | G62: 0
A63: 20329 | B63: … lammutamine / likvideerimine (kirjeldus) | D63: … | G63: 0
A64: 20401 | B64: Geodeetilise mõõdistusvõrgu punkti ümberpaigutamine Pk xx; punkti nr | D64: tk | G64: 0
A65: 20402 | B65: Geodeetilise mõõdistusvõrgu punkti kaitsmine Pk xx; punkti nr | D65: tk | G65: 0
A66: 20501 | B66: Mälestise ümberpaigutamine, Pk xx | D66: tk | G66: 0
A67: 20502 | B67: Muinsuskaitseline eeluuring | D67: kogusumma | G67: 0
A68: 20503 | B68: Muinsuskaitseline järelevalve | D68: kogusumma | G68: 0
A69: 20504 | B69: Muinsuskaitseline uuring | D69: kogusumma | G69: 0
F71: Kantud kokkuvõttesse | G71: =SUM(G60:G70) -> 0
A73: KULUDE LOEND NR 3: MULLATÖÖD
A74: Artikli nr | B74: Makseartikli nimetus | C74: Parameetrid | D74: Mõõtühik | E74: Maht | F74: kg/CO2e | G74: Kokku
A75: 30101 | B75: Kasvupinnase eemaldamine | D75: m3 | F75: 1.7 | G75: =E75*F75 -> 0
A76: 30102 | B76: Ehituseks sobiva täitepinnase kaevandamine | D76: m3 | F76: 1.7 | G76: =E76*F76 -> 0
A77: 30103 | B77: Ehituseks sobimatu pinnase kaevandamine | D77: m3 | F77: 1.7 | G77: 0
A78: 30104 | B78: Kõva pinnase kaevandamine | D78: m3 | F78: 3.3 | G78: 0
A79: 30105 | B79: Turba kaevandamine | D79: m3 | F79: 1.7 | G79: 0
A80: 30107 | B80: Uute kraavide kaevamine | D80: m3 | F80: 1.7 | G80: 0
A81: 30201 | B81: Kraavide puhastamine | D81: m | F81: 1.7 | G81: 0
A82: 30301 | B82: ….. puhastamine | D82: m
A83: 30302 | B83: …... puhastamine | D83: tk
A84: 30401 | B84: Muldkeha ehitamine kohalikust pinnasest | D84: m3 | F84: 2.6 | G84: 0
A85: 30402 | B85: Muldkeha ehitamine juurdeveetavast pinnasest | D85: m3 | F85: 10.8 | G85: 0
A86: 30403 | B86: Astmete lõikamine | D86: m3 | F86: 0.7 | G86: 0
A87: 30404 | B87: Muldkeha ehitamine tellija pinnasest | D87: m3 | F87: 2.6 | G87: 0
A88: 30405 | B88: Müratõkkevalli ehitamine | D88: m3 | F88: 2.6 | G88: 0
A89: 30501 | B89: Dreenkiht | C89: 1 | D89: m2 | F89: =F85/100*C89 -> 0.108
A90: 30502 | B90: Külgdreenide ehitamine | D90: m2
A91: 30503 | B91: Pikidreenide ehitamine | D91: m2
A92: 30601 | B92: Oleva mulde (süvendi) nõlvade planeerimine ja tihendamine | D92: m2 | F92: 0.2 | G92: 0
A93: 30602 | B93: Oleva maantee vaheriba (eraldusriba) planeerimine ja tihendamine | D93: m2 | F93: 0.2 | G93: 0
A94: 30603 | B94: Oleva mulde pealispinna planeerimine ja tihendamine | D94: m2 | F94: 0.2 | G94: =E94*F94 -> 0
A95: 30604 | B95: Mulde aluspinna planeerimine ja tihendamine | D95: m2 | F95: 0.2 | G95: 0
B96: Muldkeha stabiliseerimine | C96: 1 | D96: m2 | F96: =0.17*C96 -> 0.17 | G96: =E96*F96 -> 0
A97: 30605 | B97: Erosioonitõkkematt | D97: m2 | F97: 0.2 | G97: 0
A98: 30606 | B98: Geokärg | C98: 1 | D98: m2 | F98: =1.5+F125 -> 1.65 | G98: 0
A99: 30607 | B99: Lubjakivi killustik | C99: 1 | D99: m2 | F99: =0.15*C99 -> 0.15 | G99: =F99*E99 -> 0
A100: 30608 | B100: Lubjakivikillustik geotekstiilil | D100: m2 | F100: =F99+F106 -> 0.59 | G100: 0
A101: 30609 | B101: Munakivid | D101: m2 | F101: 1 | G101: 0
A102: 30610 | B102: Munakivid geotesktiilil | D102: m2 | F102: =F101+F106 -> 1.44 | G102: 0
A103: 30611 | B103: Munakivid betooniseguga geotekstiilil | D103: m2 | F103: 8.7 | G103: 0
A104: 30612 | B104: Erosioonikaitse vahendid (matid) | D104: m2
A105: 30613 | B105: Kraavide ja nõlvade kindlustamine | D105: kogusumma
A106: 30701 | B106: Geosünteet, eraldav | D106: m2 | F106: 0.44 | G106: 0
A107: 30702 | B107: Geosünteet, filtreeriv | D107: m2 | F107: 0.65 | G107: 0
A108: 30703 | B108: Geosünteet, tugevdav | D108: m2 | F108: 2.24 | G108: 0
A109: 30704 | B109: Geomembraan (sh. Bentoniit, bituumen) | D109: m2 | F109: 4.5 | G109: 0
A110: 30705 | B110: Geosünteetiline savivahekiht | D110: m2 | F110: 4.5 | G110: 0
A111: 30706 | B111: Geokomposiit | D111: m2 | F111: 2.68 | G111: 0
F113: Kantud kokkuvõttesse | G113: =SUM(G75:G112) -> 0
A115: KULUDE LOEND NR 4: KATEND
A116: Artikli nr | B116: Makseartikli nimetus | C116: Parameetrid | D116: Mõõtühik | E116: Maht | F116: kg/CO2e | G116: Kokku
A117: 40101 | B117: Olemasoleva katendi freesimine | C117: 1 | D117: m2 | F117: =0.04*C117 -> 0.04 | G117: =F117*E117 -> 0
A118: 40102 | B118: Olemasoleva katte tasandusfreesimine | C118: 1 | D118: m2 | F118: 0.4 | G118: 0
A119: 40103 | B119: Hinnamuutus freesitava kihi paksuse muutusest | D119: 1 cm/m2
A120: 40104 | B120: (Põlevkivituhaga) stabiliseeritud kihi purustamine | C120: 1 | D120: m2 | F120: =0.04*C120 -> 0.04 | G120: 0
A121: 40105 | B121: Põlevkivituhaga stabiliseeritud kihi eemaldamine freesimisega | C121: 1 | D121: m2 | F121: =0.04*C121 -> 0.04 | G121: 0
A122: 40106 | B122: Hinnamuutus freesitava kihi paksuse muutusest | D122: 1 cm/m2
A123: 40501 | B123: Killustikalus ….. | C123: 1 | D123: m2 | F123: =0.15*C123 -> 0.15 | G123: 0
A124: 40501b | B124: Tardkivikillustikalus | C124: 1 | D124: m2 | F124: =0.35*C124 -> 0.35 | G124: 0
A125: 40502 | B125: Paekivi killustikust tasanduskiht | C125: 1 | D125: m2 | F125: =0.15*C125 -> 0.15 | G125: 0
A126: 40503 | B126: Kergimmutatud killustikalus – killustikaluse kogupaksus fr-…. kiilkillustik kiht - [ülemine] | C126: 1 | D126: m2 | F126: =1.18*C126 -> 1.18 | G126: 0
A127: 40504 | B127: Tehnoloogiline kiht ….. | C127: 1 | D127: m2 | F127: =0.12*C127 -> 0.12 | G127: 0
A128: 40505 | B128: Bituumenmakadamist alus x/y | C128: 1 | D128: m2 | F128: =1.18*C128 -> 1.18 | G128: 0
A129: 40506 | B129: Seguris valmistatud mustkillustikust alus MUK | C129: 1 | D129: m2 | F129: =1.18*C129 -> 1.18 | G129: 0
A130: 40507 | B130: xxxx……. aluskiht | C130: 1 | D130: m2 | F130: =0.12*C130 -> 0.12 | G130: =F130*E130 -> 0
A131: 40509 | B131: xxx….tasanduskiht | C131: 1 | D131: m2 | F131: =0.12*C131 -> 0.12 | G131: =F131*E131 -> 0
A132: 40511 | B132: Sidumata segust kate (s.j. purustatud kruus) | C132: 1 | D132: m2 | F132: =0.12*C132 -> 0.12 | G132: 0
A133: 40512 | B133: Immutatud aluse ehitus | C133: 1 | D133: m2 | F133: =1.18*C133 -> 1.18 | G133: 0
A134: 40513 | B134: Freesitud materjali ja paekivikillustiku segust (...%+...%) aluskiht (s.k. segu PS 32) | C134: 1 | D134: m2 | F134: =0.062*C134 -> 0.062 | G134: 0
A135: 41001 | B135: Tsementstabiliseeritud katendikiht TS … | C135: 1 | D135: m2 | E135: 1 | F135: =0.037*C135+G136+G137 -> 0.5306 | G135: 0.037
B136: Killustikust täitematerjalid 50% | C136: 50 | D136: m³ | E136: =E135*C135/100*C136/100 -> 0.005 | F136: =$F$123/$C$123*100 -> 15 | G136: =E136*F136 -> 0.075
B137: Hüdrauliline sideaine | C137: 2.5 | D137: t | E137: =C135*E135*2.3/100*C137/100 -> 0.000575 | F137: 728 | G137: 0.4186
A138: 41101 | B138: KS..., h= cm killustik 50%, freespuru 47,5%, lisatav orgaaniline sideaine 1,5%, hüdrauliline sideaine 2,5% | C138: 1 | D138: m2 | E138: 1 | F138: =0.037*C138+G139+G140+G141 -> 0.72035 | G138: 0.037
A139: 41101a | B139: Killustikust täitematerjalid 50% | C139: 50 | D139: m3 | E139: =E138*C138/100*C139/100 -> 0.005 | F139: =F99*100 -> 15 | G139: 0.075
A140: 41101b | B140: Orgaaniline sideaine 1.5% | C140: 1.5 | D140: t | E140: =C138*E138*2.3/100*C140/100 -> 0.000345 | F140: 550 | G140: 0.18975
A141: 41101c | B141: Hüdrauliline sideaine 2.5% | C141: 2.5 | D141: t | E141: =C138*E138*2.3/100*C141/100 -> 0.000575 | F141: 728 | G141: 0.4186
A142: 41201 | B142: BS..., h= cm killustik 50%, freespuru 50%, lisatav orgaaniline sideaine 1,5%, | C142: 1 | D142: m2 | E142: 1 | F142: =0.037*C142+G143+G144+G145 -> 0.47609 | G142: 0.037
A143: 41201a | B143: Killustikust täitematerjalid 50% | C143: 50 | D143: m3 | E143: =E142*C142/100*C143/100 -> 0.005 | F143: =$F$123/$C$123*100 -> 15 | G143: =E143*F143 -> 0.075
A144: 41201b | B144: Orgaaniline sideaine 1.5% | C144: 1.5 | D144: t | E144: =C142*E142*2.3/100*C144/100 -> 0.000345 | F144: 570 | G144: =E144*F144 -> 0.19665
A145: 41101c | B145: Hüdrauliline sideaine 1.0% | C145: 1 | D145: t | E145: =C142*E142*2.3/100*C145/100 -> 0.00023 | F145: 728 | G145: =E145*F145 -> 0.16744
A146: 41301 | B146: Juurdeveetav materjal profiili parandamiseks | D146: t | F146: 7.37 | G146: =F146*E146 -> 0
A147: 41302 | B147: Hinnamuutus täitematerjali sisaldusest | D147: t
A148: 41303 | B148: Hinnamuutus tsemendi/hüdraulilise sideaine sisaldusest | D148: t
A149: 41302 | B149: Hinnamuutus bituumeni/emulsiooni sisaldusest | D149: t
A150: 41303 | B150: Hinnamuutus killustiku sisaldusest | D150: t
A151: 41304 | B151: Hinnamuutus täitematerjali stabiliseerimisel | D151: t
A152: 42001 | B152: Kruntimine …..-ga | C152: 1 | D152: m2 | F152: =0.5*C152 -> 0.5 | G152: =F152*E152 -> 0
A153: 42002 | B153: Pikivuugi kruntimine vuugiliimiga (ülemine kiht) | C153: 1 | D153: m | F153: =0.5*C153 -> 0.5 | G153: =F153*E153 -> 0
A154: 42003 | B154: Vuugi kruntimine xxx (alumine kiht) | C154: 1 | D154: m | F154: =0.5*C154 -> 0.5 | G154: 0
A155: 42101 | B155: Asfaldi korduvkasutamine (RA) (Remix meetod) ; (töödeldav segu mark); | C155: 1 | D155: m2 | F155: =0.13*C155 -> 0.13 | G155: 0
A156: 42102 | B156: Asfaldi korduvkasutamine (RA) ;(REMO meetod) ;(töödeldatava segu mark); | C156: 1 | D156: m2 | F156: =0.09*C156 -> 0.09 | G156: 0
A157: 42104 | B157: Asfaldi korduvkasutamine (RA) ;(ROOPAREMIX meetod); (töödeldatava segu mark) | C157: 1 | D157: m2 | F157: =0.18*C157 -> 0.18 | G157: 0
A158: 42105 | B158: Asfaldi korduvkasutamine (RA) ; (ROOPAREMO meetod); (töödeldatava segu mark) | C158: 1 | D158: m2 | F158: =0.18*C158 -> 0.18 | G158: 0
A159: 42106 | B159: Asfalteerimine kuumtaastatud alusele (AKA); (Kulumiskihi segu mark) | C159: 1 | D159: m2 | F159: =0.09*C159 -> 0.09 | G159: 0
A160: 42107 | B160: Asfaltkatte kuumtaastamine (REM+meetod); (Kulumiskihi segu mark) | C160: 1 | D160: m2 | F160: =0.09*C160 -> 0.09 | G160: 0
A161: 42108 | B161: Hinnamuutus lisatavast bituumenist | D161: 0,1 %/t
A162: 42109 | B162: Hinnamuutus lisatavast täitematerjalist | D162: 0,1 %/t
A163: 42110 | B163: Hinnamuutus lisatavast asfaltsegust | D163: 0,1%/t
A164: 43001 | B164: Asfaltsegust (segutüüp) tasanduskiht | C164: 1 | D164: t | F164: =0.07*C164 -> 0.07 | G164: 0
A165: 43002 | B165: Tihedast asfaltbetoonist (segutüüp) segu | C165: 1 | D165: m2 | F165: =1.71*C165 -> 1.71 | G165: 0
A166: 43003 | B166: Poorsest asfaltbetoonist (segutüüp) kiht | C166: 1 | D166: m2 | F166: =0.93*C166 -> 0.93 | G166: 0
A167: 43004 | B167: Killustikmastiksasfaldist (segutüüp) kiht | C167: 1 | D167: m2 | F167: =1.8*C167 -> 1.8 | G167: 0
A168: 43005 | B168: Valuasfaldist (segutüüp) kiht | C168: 1 | D168: m2 | F168: =2.85*C168 -> 2.85 | G168: 0
A169: 43006 | B169: Dreenasfaldist (segutüüp) kiht | C169: 1 | D169: m2 | F169: =1.71*C169 -> 1.71 | G169: 0
A170: 43010 | B170: Katte lööaukude remont | D170: m2
A171: 43011 | B171: Roobaste täitmine (teha valik) | D171: t / m2
A172: 43012 | B172: Katend | D172: kogusumma
A173: 43013 | B173: Teekatte karestamine | D173: m2 | F173: =F118 -> 0.4 | G173: 0
A174: 43501 | B174: Terasvõrgu ….. paigaldamine | D174: m2 | F174: 8.1 | G174: 0
A175: 43502 | B175: Geotekstiili ….. paigaldamine | D175: m2 | F175: 2.24 | G175: 0
A176: 43503 | B176: Geovõrgu ….. paigaldamine | D176: m2 | F176: 2.68 | G176: 0
A177: 43504 | B177: Terasvõrgu koos mössiga paigaldamine | D177: m2 | F177: 8.21 | G177: 0
A178: 44001 | B178: 1x pindamine | C178: 1 | D178: m2 | F178: =0.12*C178 -> 0.12 | G178: 0
A179: 44002 | B179: Mösspindamine | C179: 1 | F179: =0.12*C179 -> 0.12 | G179: 0
A180: 44003 | B180: Hinnamuutus bituumenemulsiooni / põlevkivibituumeni sisaldusest | D180: 0,1 l/m2
A181: 44004 | B181: Hinnamuutus killustiku sisaldusest | D181: 1 kg/m2
A182: 44005 | B182: ….. pindamine | C182: 1 | D182: m2 | F182: =0.12*C182 -> 0.12 | G182: =F182*E182 -> 0
A183: 44006 | B183: ….. materjali laotamine ja tihendamine | D183: m2
A184: 44501 | B184: Peenarde kindlustamine (purustatud kruus, killustik jne.) | C184: 1 | D184: m2 | F184: =0.15*C184 -> 0.15 | G184: 0
A185: 45001 | B185: Betoonäärekivid | D185: m | F185: 19 | G185: 0
A186: 45002 | B186: Liimitud äärekivid | D186: m | F186: 19 | G186: 0
A187: 45003 | B187: Tardkiviäärekivid | D187: m | F187: 32 | G187: 0
A188: 45004 | B188: Tehiskivist sillutuskate | D188: m2 | F188: 32 | G188: 0
A189: 45005 | B189: Munakivi sillutis | D189: m2 | F189: 6.6 | G189: 0
A190: 45006 | B190: Betoonplaat | D190: m2 | F190: 32 | G190: 0
A191: 45007 | B191: Looduskivist sillutuskate (nt täringkivi) | D191: m2 | F191: 88 | G191: 0
A192: 45008 | B192: Reljeefsed (inva) kivid | D192: m2 | F192: 32 | G192: 0
F194: Kantud kokkuvõttesse | G194: =SUM(G117:G193) -> 1.72704
A196: KULUDE LOEND NR 5: DRENAAŽ JA TRUUBID
A197: Artikli nr | B197: Makseartikli nimetus | C197: Parameetrid | D197: Mõõtühik | E197: Maht | F197: kg/CO2e | G197: Kokku
A198: 50101 | B198: Dreenitoru <300mm | C198: 1 | D198: m | F198: =0.05*C198 -> 0.05 | G198: =F198*E198 -> 0
A199: 50102 | B199: Dreenitoru väljavoolu remont | D199: tk | G199: =F199*E199 -> 0
A200: 50104 | B200: Drenaažide ühendused | D200: tk | G200: 0
A201: 50105 | B201: Dreenid | C201: 1 | D201: m | F201: =0.05*C201 -> 0.05 | G201: 0
A202: 50106 | B202: Geotekstiil ….. | D202: m2 | G202: 0
A203: 50107 | B203: Dreeni väljavoolude kindlustamine | D203: tk | G203: 0
A204: 50201 | B204: …..kaev | D204: tk | G204: 0
A205: 50202 | B205: Kontrollkaev | C205: 1 | D205: tk | F205: =0.5*C205 -> 0.5 | G205: 0
A206: 50203 | B206: Õlipüüdur , ….klass | D206: tk | G206: 0
A207: 50204 | B207: ….. kaevuluugi asendamine | D207: tk | G207: 0
A208: 50205 | B208: ….. kaevuluuk | D208: tk | G208: 0
A209: 50206 | B209: (Drenaaži, vihmavee, betoon, plastist) kaevu remontimine | D209: tk | G209: 0
A210: 50207 | B210: Kaevude puhastamine | D210: tk | G210: 0
A211: 50208 | B211: Põiktorude puhastamine | D211: m | G211: 0
A212: 50209 | B212: Torude väljavoolude kindlustamine | D212: m2 | F212: =F103 -> 8.7 | G212: 0
... 352 more rows

Sheet Projekteerimise arvutus
C4: KULULOEND
C6: OBJEKT
A11: KULUTUSED Nr.1: ÜLDISED
A12: Artikli nr. | C12: Makseartikli nimetus | D12: Parameetrid | E12: Mõõtühik | F12: Maht | G12: kg/CO2e | H12: t/CO2e
A13: 1 | B13: 2 | C13: 3 | D13: 4 | E13: 5 | F13: 6 | G13: 7 | H13: 8
A15: 10201 | C15: Proovivõtt ja katsetamine | E15: kogusumma | F15: 1
A16: 10202 | C16: Load, kindlustused | E16: kogusumma | F16: 1
A17: 10204 | C17: Tööpiirkonna ja teede korrashoid | E17: kogusumma | F17: 1
A18: 10210 | C18: Ajutised tööd (sh. objektikontorid, ajutised teed) | E18: kogusumma | F18: 1
A19: 10211 | C19: Tööde mõõdistamine ja märkimistööd | E19: kogusumma | F19: 1
A20: 10212 | C20: Konsultatsioonid projekteerijaga | E20: kogusumma | F20: 1
A21: 10214 | C21: Tööprojektide ja tööjooniste koostamine (sh kõik tehnilise kirjeldusega seotud projekteerimistööd) | E21: kogusumma | F21: 1
A22: 10215 | C22: Muud tööd (sh muldkeha erimeede/erilahendus, monitoorimine (sh 5 aastat garantiiperioodil), muud tehnilise kirjeldusega seotud tööd) | E22: kogusumma | F22: 1
G24: Kantud kokkuvõttesse
A27: KULUTUSED Nr. 2: EHITUSOBJEKTI ETTEVALMISTAMINE
A28: Artikli nr. | C28: Makseartikli nimetus | D28: Parameetrid | E28: Mõõtühik | F28: Maht | G28: kg/CO2e | H28: t/CO2e
A29: 1 | B29: 2 | C29: 3 | D29: 4 | E29: 5 | F29: 6 | G29: 7 | H29: 8
A31: 20101 | C31: Ettevalmistustööd | E31: kogusumma | F31: 1
A32: 20201 | B32: a | C32: Juurimine | E32: m² | F32: 271823 | G32: =_xlfn.XLOOKUP(A32,GWP!$A$22:$A$561,GWP!$F$22:$F$561) -> 0.017 | H32: =F32*G32/1000 -> 4.620991
A33: 20203 | C33: Raadamine | E33: m² | F33: 55000 | G33: =_xlfn.XLOOKUP(A33,GWP!$A$22:$A$561,GWP!$F$22:$F$561) -> 0 | H33: =F33*G33/1000 -> 0
A34: 20208 | C34: Üksikpuude langetamine koos kändude juurimisega (freesimisega) | E34: tk | F34: 76 | G34: =_xlfn.XLOOKUP(A34,GWP!$A$22:$A$561,GWP!$F$22:$F$561) -> 0 | H34: 0
A35: 20212 | B35: a | C35: Teemaa-ala puhastamine | E35: m² | F35: 165530 | G35: =_xlfn.XLOOKUP(A35,GWP!$A$22:$A$561,GWP!$F$22:$F$561) -> 0 | H35: 0
A36: 20301 | C36: Liiklusmärgi eemaldamine (koos postidega, vundamentidega jne.) | E36: tk | F36: 105 | G36: =_xlfn.XLOOKUP(A36,GWP!$A$22:$A$561,GWP!$F$22:$F$561) -> 0 | H36: 0
A37: 20302 | C37: Tahvli eemaldamine (koos postidega, vundamentidega jne.) | E37: tk | F37: 40 | G37: =_xlfn.XLOOKUP(A37,GWP!$A$22:$A$561,GWP!$F$22:$F$561) -> 0 | H37: 0
A38: 20305 | C38: Tähispostide eemaldamine | E38: tk | F38: 393 | G38: =_xlfn.XLOOKUP(A38,GWP!$A$22:$A$561,GWP!$F$22:$F$561) -> 0 | H38: 0
A39: 20306 | B39: a | C39: Truupide demonteerimine (betoon) | D39: dia = 200 mm | E39: m | F39: 8 | G39: =_xlfn.XLOOKUP(A39,GWP!$A$22:$A$561,GWP!$F$22:$F$561) -> 0 | H39: 0
A40: 20306 | B40: b | C40: Truupide demonteerimine (betoon) | D40: dia = 500 mm | E40: m | F40: 39 | G40: =_xlfn.XLOOKUP(A40,GWP!$A$22:$A$561,GWP!$F$22:$F$561) -> 0 | H40: 0
A41: 20306 | B41: c | C41: Truupide demonteerimine (betoon) | D41: dia = 600 mm | E41: m | F41: 10 | G41: =_xlfn.XLOOKUP(A41,GWP!$A$22:$A$561,GWP!$F$22:$F$561) -> 0 | H41: 0
A42: 20306 | B42: d | C42: Truupide demonteerimine (betoon) | D42: dia = 1000 mm | E42: m | F42: 38 | G42: =_xlfn.XLOOKUP(A42,GWP!$A$22:$A$561,GWP!$F$22:$F$561) -> 0 | H42: 0
A43: 20306 | B43: e | C43: Truupide demonteerimine (betoon) | D43: dia = 1600 mm | E43: m | F43: 38 | G43: =_xlfn.XLOOKUP(A43,GWP!$A$22:$A$561,GWP!$F$22:$F$561) -> 0 | H43: 0
A44: 20306 | B44: f | C44: Truupide demonteerimine (plast) | D44: dia = 200 mm | E44: m | F44: 8 | G44: =_xlfn.XLOOKUP(A44,GWP!$A$22:$A$561,GWP!$F$22:$F$561) -> 0 | H44: 0
A45: 20306 | B45: g | C45: Truupide demonteerimine (plast) | D45: dia = 400 mm | E45: m | F45: 67 | G45: =_xlfn.XLOOKUP(A45,GWP!$A$22:$A$561,GWP!$F$22:$F$561) -> 0 | H45: 0
A46: 20306 | B46: h | C46: Truupide demonteerimine (plast) | D46: dia = 500 mm | E46: m | F46: 10 | G46: =_xlfn.XLOOKUP(A46,GWP!$A$22:$A$561,GWP!$F$22:$F$561) -> 0 | H46: 0
A47: 20306 | B47: i | C47: Truupide demonteerimine (plast) | D47: dia = 600 mm | E47: m | F47: 12 | G47: =_xlfn.XLOOKUP(A47,GWP!$A$22:$A$561,GWP!$F$22:$F$561) -> 0 | H47: 0
A48: 20306 | B48: j | C48: Truupide demonteerimine (plast) | D48: dia = 800 mm | E48: m | F48: 52 | G48: =_xlfn.XLOOKUP(A48,GWP!$A$22:$A$561,GWP!$F$22:$F$561) -> 0 | H48: 0
A49: 20310 | C49: Truubi päiste lammutamine | E49: tk | F49: 9 | G49: =_xlfn.XLOOKUP(A49,GWP!$A$22:$A$561,GWP!$F$22:$F$561) -> 0 | H49: 0
A50: 20311 | C50: Bussipeatuste lammutamine (koos ootekojaga, äärekivide, vundamendiga jne) | E50: tk | F50: 4 | G50: =_xlfn.XLOOKUP(A50,GWP!$A$22:$A$561,GWP!$F$22:$F$561) -> 0 | H50: 0
A51: 20313 | C51: Äärekivide lammutamine | E51: m | F51: 255 | G51: =_xlfn.XLOOKUP(A51,GWP!$A$22:$A$561,GWP!$F$22:$F$561) -> 0 | H51: 0
A52: 20315 | B52: a | C52: Hoonete lammutamine (koos vundamendiga) Pk 772+85 paremal | D52: 10 - 20 m³ | E52: tk | F52: 1 | G52: =_xlfn.XLOOKUP(A52,GWP!$A$22:$A$561,GWP!$F$22:$F$561) -> 0 | H52: 0
A53: 20315 | B53: b | C53: Hoonete lammutamine (koos vundamendiga) Pk 711+00 paremal | D53: 20 - 50 m³ | E53: tk | F53: 1 | G53: =_xlfn.XLOOKUP(A53,GWP!$A$22:$A$561,GWP!$F$22:$F$561) -> 0 | H53: 0
A54: 20315 | B54: c | C54: Hoonete lammutamine (koos vundamendiga) PK 773+00 paremal | D54: 20 - 50 m³ | E54: tk | F54: 1 | G54: =_xlfn.XLOOKUP(A54,GWP!$A$22:$A$561,GWP!$F$22:$F$561) -> 0 | H54: 0
A55: 20316 | C55: Põrkepiirde eemaldamine (koos postidega) | E55: m | F55: 1643 | G55: =_xlfn.XLOOKUP(A55,GWP!$A$22:$A$561,GWP!$F$22:$F$561) -> 0 | H55: 0
A56: 20317 | C56: Torupiirde eemaldamine | E56: m | F56: 197 | G56: =_xlfn.XLOOKUP(A56,GWP!$A$22:$A$561,GWP!$F$22:$F$561) -> 0 | H56: 0
A57: 20319 | C57: Kivide ümbertõstmine pk 702+00-711+50 paremal | E57: tk | F57: 6 | G57: =_xlfn.XLOOKUP(A57,GWP!$A$22:$A$561,GWP!$F$22:$F$561) -> 0 | H57: 0
A58: 20320 | C58: Eriehitiste lammutamine (kiviaiad pk 706+00 vasakul, pk 706+75 vasakul ning tee 121 pk 2+35 vasakul) | E58: m | F58: 38 | G58: =_xlfn.XLOOKUP(A58,GWP!$A$22:$A$561,GWP!$F$22:$F$561) -> 0 | H58: 0
A59: 20320 | C59: Eriehitiste lammutamine (väikevormid või -elemendid) | E59: tk | F59: 14 | G59: =_xlfn.XLOOKUP(A59,GWP!$A$22:$A$561,GWP!$F$22:$F$561) -> 0 | H59: 0
A60: 20321 | C60: Võrkaia lammutamine (koos vundamendiga) (Möldri kinnistu vasakul) | E60: m | F60: 27 | G60: =_xlfn.XLOOKUP(A60,GWP!$A$22:$A$561,GWP!$F$22:$F$561) -> 0 | H60: 0
A61: 20323 | C61: Kiviaia ümbertõstmine (MS 173 ja MS 175 piirkond) | E61: m | F61: 11 | G61: =_xlfn.XLOOKUP(A61,GWP!$A$22:$A$561,GWP!$F$22:$F$561) -> 0 | H61: 0
A62: 20329 | C62: Kuklasepesade teisaldamine | E62: tk | F62: 5 | G62: =_xlfn.XLOOKUP(A62,GWP!$A$22:$A$561,GWP!$F$22:$F$561) -> 0 | H62: 0
A63: 20503 | C63: Muinsuskaitseline järelevalve | E63: kogusumma | F63: 1 | G63: =_xlfn.XLOOKUP(A63,GWP!$A$22:$A$561,GWP!$F$22:$F$561) -> 0 | H63: 0
G65: Kantud kokkuvõttesse | H65: =SUM(H31:H63) -> 4.620991
A68: KULUTUSED Nr. 3: MULLATÖÖD
A69: Artikli nr. | C69: Makseartikli nimetus | D69: Parameetrid | E69: Mõõtühik | F69: Maht | G69: kg/CO2e | H69: t/CO2e
A70: 1 | B70: 2 | C70: 3 | D70: 4 | E70: 5 | F70: 6 | G70: 7 | H70: 8
A72: 30101 | C72: Kasvupinnase eemaldamine | D72: 30 | E72: m³ | F72: 119168 | G72: 1.7 | H72: =F72*G72/1000 -> 202.5856
A73: 30103 | C73: Ehituseks sobimatu pinnase kaevamine | E73: m³ | F73: 295152 | G73: =_xlfn.XLOOKUP(A73,GWP!$A$22:$A$561,GWP!$F$22:$F$561) -> 1.7 | H73: =F73*G73/1000 -> 501.7584
A74: 30107 | C74: Uute kraavide kaevamine | E74: m³ | F74: 9201 | G74: =_xlfn.XLOOKUP(A74,GWP!$A$22:$A$561,GWP!$F$22:$F$561) -> 1.7 | H74: 15.6417
A75: 30201 | C75: Kraavide puhastamine | E75: m | F75: 134 | G75: =_xlfn.XLOOKUP(A75,GWP!$A$22:$A$561,GWP!$F$22:$F$561) -> 1.7 | H75: 0.2278
A76: 30402 | B76: a | C76: Muldkeha ehitamine juurdeveetavast pinnasest - eraldusriba alus_Tm_65 | E76: m³ | F76: 4509 | G76: =_xlfn.XLOOKUP(A76,GWP!$A$22:$A$561,GWP!$F$22:$F$561) -> 10.8 | H76: 48.6972
A77: 30401 | C77: Muldkeha ehitamine kohalikust pinnasest - mullavall | E77: m³ | F77: 5041 | G77: =_xlfn.XLOOKUP(A77,GWP!$A$22:$A$561,GWP!$F$22:$F$561) -> 2.6 | H77: 13.1066
A78: 30402 | B78: b | C78: Muldkeha ehitamine juurdeveetavast pinnasest - Tm_65 | E78: m³ | F78: 232495 | G78: =_xlfn.XLOOKUP(A78,GWP!$A$22:$A$561,GWP!$F$22:$F$561) -> 10.8 | H78: 2510.946
A79: 30402 | B79: c | C79: Muldkeha ehitamine juurdeveetavast pinnasest - Tm_65 (mahasõidud) | E79: m³ | F79: 2498 | G79: =_xlfn.XLOOKUP(A79,GWP!$A$22:$A$561,GWP!$F$22:$F$561) -> 10.8 | H79: 26.9784
A80: 30501 | B80: a | C80: Dreenkiht, Tm_105 (keskliiv) | D80: 20 | E80: m² | F80: 15684 | G80: =_xlfn.XLOOKUP(A80,GWP!$A$22:$A$561,GWP!$F$22:$F$561)*D80 -> 2.16 | H80: 33.87744
A81: 30501 | B81: c | C81: Dreenkiht, Tm_105 (keskliiv) (mahasõidud) | D81: 20 | E81: m² | F81: 1337 | G81: =_xlfn.XLOOKUP(A81,GWP!$A$22:$A$561,GWP!$F$22:$F$561)*D81 -> 2.16 | H81: 2.88792
A82: 30501 | B82: d | C82: Dreenkiht, Tm_105 (keskliiv) | D82: 27 | E82: m² | F82: 31479 | G82: =_xlfn.XLOOKUP(A82,GWP!$A$22:$A$561,GWP!$F$22:$F$561)*D82 -> 2.916 | H82: 91.792764
A83: 30501 | B83: e | C83: Dreenkiht, Tm_105 (keskliiv) (mahasõidud) | D83: 27 | E83: m² | F83: 1296 | G83: =_xlfn.XLOOKUP(A83,GWP!$A$22:$A$561,GWP!$F$22:$F$561)*D83 -> 2.916 | H83: 3.779136
A84: 30501 | B84: f | C84: Dreenkiht, Tm_105 (keskliiv) | D84: 40 | E84: m² | F84: 276062 | G84: =_xlfn.XLOOKUP(A84,GWP!$A$22:$A$561,GWP!$F$22:$F$561)*D84 -> 4.32 | H84: 1192.58784
A85: 30501 | B85: h | C85: Dreenkiht, Tm_105 (keskliiv) (mahasõidud) | D85: 40 | E85: m² | F85: 180 | G85: =_xlfn.XLOOKUP(A85,GWP!$A$22:$A$561,GWP!$F$22:$F$561)*D85 -> 4.32 | H85: 0.7776
A86: 30501 | B86: i | C86: Dreenkiht, Tm_130 (kruusliiv või jämeliiv) | D86: 20 | E86: m² | F86: 18543 | G86: =_xlfn.XLOOKUP(A86,GWP!$A$22:$A$561,GWP!$F$22:$F$561)*D86 -> 2.16 | H86: 40.05288
A87: 30601 | C87: Oleva mulde (süvendi) nõlvade planeerimine ja tihendamine | E87: m² | F87: 229440 | G87: =_xlfn.XLOOKUP(A87,GWP!$A$22:$A$561,GWP!$F$22:$F$561) -> 0.2 | H87: 45.888
A88: 30602 | C88: Oleva maantee vaheriba (eraldusriba) planeerimine ja tihendamine | E88: m² | F88: 34500 | G88: =_xlfn.XLOOKUP(A88,GWP!$A$22:$A$561,GWP!$F$22:$F$561) -> 0.2 | H88: 6.9
A89: 30603 | C89: Oleva mulde pealispinna planeerimine ja tihendamine | E89: m² | F89: 138701 | G89: =_xlfn.XLOOKUP(A89,GWP!$A$22:$A$561,GWP!$F$22:$F$561) -> 0.2 | H89: 27.7402
A90: 30604 | B90: a | C90: Mulde aluspinna planeerimine ja tihendamine | E90: m² | F90: 194822 | G90: =_xlfn.XLOOKUP(A90,GWP!$A$22:$A$561,GWP!$F$22:$F$561) -> 0.2 | H90: 38.9644
A91: 30604 | B91: c | C91: Mulde aluspinna planeerimine ja tihendamine (mahasõidud) | E91: m² | F91: 4316 | G91: =_xlfn.XLOOKUP(A91,GWP!$A$22:$A$561,GWP!$F$22:$F$561) -> 0.2 | H91: 0.8632
A92: 30605 | B92: a | C92: Erosioonitõkkematt | E92: m² | F92: 54619 | G92: =_xlfn.XLOOKUP(A92,GWP!$A$22:$A$561,GWP!$F$22:$F$561) -> 0.2 | H92: 10.9238
A93: 30605 | B93: b | C93: Erosioonitõkkematt (mahasõidud) | E93: m² | F93: 202 | G93: =_xlfn.XLOOKUP(A93,GWP!$A$22:$A$561,GWP!$F$22:$F$561) -> 0.2 | H93: 0.0404
A94: 30607 | C94: Lubjakivikillustik fr 32/63 (ulukitara ja kraavi lõikumiskohad) | D94: 15 | E94: m² | F94: 44 | G94: =_xlfn.XLOOKUP(A94,GWP!$A$22:$A$561,GWP!$F$22:$F$561)*D94 -> 2.25 | H94: 0.099
A95: 30608 | C95: Lubjakivikillustik fr 32/63 geotekstiilil (NGS I profiil) | D95: 15 | E95: m² | F95: 1061 | G95: =_xlfn.XLOOKUP(A95,GWP!$A$22:$A$561,GWP!$F$22:$F$561) -> 0.59 | H95: 0.62599
A96: 30611 | C96: Munakivid betooniseguga (hmin = 5 cm) geotekstiilil (NGS II profiil) | D96: 15 | E96: m² | F96: 196 | G96: =_xlfn.XLOOKUP(A96,GWP!$A$22:$A$561,GWP!$F$22:$F$561) -> 8.7 | H96: 1.7052
G98: Kantud kokkuvõttesse | H98: =SUM(H72:H97) -> 4819.44747
A101: KULUTUSED Nr. 4: KATEND
A102: Artikli nr. | C102: Makseartikli nimetus | D102: Parameetrid | E102: Mõõtühik | F102: Maht | G102: kg/CO2e | H102: t/CO2e
A103: 1 | B103: 2 | C103: 3 | D103: 4 | E103: 5 | F103: 6 | G103: 7 | H103: 8
A105: 40101 | B105: a | C105: Olemasoleva katendi freesimine | D105: 10 | E105: m² | F105: 32501 | G105: =_xlfn.XLOOKUP(A105,GWP!$A$22:$A$561,GWP!$F$22:$F$561)*D105 -> 0.4 | H105: =F105*G105/1000 -> 13.0004
A106: 40101 | B106: b | C106: Olemasoleva katendi freesimine | D106: 15 | E106: m² | F106: 18302 | G106: =_xlfn.XLOOKUP(A106,GWP!$A$22:$A$561,GWP!$F$22:$F$561)*D106 -> 0.6 | H106: =F106*G106/1000 -> 10.9812
A107: 40101 | B107: c | C107: Olemasoleva katendi freesimine | D107: 20 | E107: m² | F107: 16567 | G107: =_xlfn.XLOOKUP(A107,GWP!$A$22:$A$561,GWP!$F$22:$F$561)*D107 -> 0.8 | H107: 13.2536
A108: 40101 | B108: d | C108: Olemasoleva katendi freesimine | D108: 25 | E108: m² | F108: 28241 | G108: =_xlfn.XLOOKUP(A108,GWP!$A$22:$A$561,GWP!$F$22:$F$561)*D108 -> 1 | H108: 28.241
A109: 40101 | B109: e | C109: Olemasoleva katendi freesimine (Konuvere sild I) | D109: 12 | E109: m² | F109: 1045 | G109: =_xlfn.XLOOKUP(A109,GWP!$A$22:$A$561,GWP!$F$22:$F$561)*D109 -> 0.48 | H109: 0.5016
A110: 40103 | C110: hinnamuutus freesitava kihi paksuse muutusest | E110: 1 cm/m² | F110: X
A111: 40105 | C111: Stabiliseeritud kihi eemaldamine freesimisega | D111: 10 | E111: m² | F111: 83034 | G111: =_xlfn.XLOOKUP(A111,GWP!$A$22:$A$561,GWP!$F$22:$F$561)*D111 -> 0.4 | H111: 33.2136
A112: 40106 | C112: hinnamuutus freesitava kihi paksuse muutusest | E112: 1 cm/m² | F112: X
A113: 40501 | B113: a | C113: Settekivikillustikust alus, fr 32/63 mm | D113: 18 | E113: m² | F113: 237 | G113: =_xlfn.XLOOKUP(A113,GWP!$A$22:$A$561,GWP!$F$22:$F$561)*D113 -> 2.7 | H113: 0.6399
A114: 40501 | B114: b | C114: Settekivikillustikust alus, fr 32/63 mm | D114: 20 | E114: m² | F114: 371 | G114: =_xlfn.XLOOKUP(A114,GWP!$A$22:$A$561,GWP!$F$22:$F$561)*D114 -> 3 | H114: 1.113
A115: 40501 | B115: c | C115: Settekivikillustikust alus, fr 32/63 mm (mahasõidud) | D115: 20 | E115: m² | F115: 940 | G115: =_xlfn.XLOOKUP(A115,GWP!$A$22:$A$561,GWP!$F$22:$F$561)*D115 -> 3 | H115: 2.82
A116: 40501 | B116: d | C116: Settekivikillustikust alus, fr 32/63 mm | D116: 25 | E116: m² | F116: 11349 | G116: =_xlfn.XLOOKUP(A116,GWP!$A$22:$A$561,GWP!$F$22:$F$561)*D116 -> 3.75 | H116: 42.55875
A117: 40501 | B117: e | C117: Settekivikillustikust alus, fr 32/63 mm (mahasõidud) | D117: 25 | E117: m² | F117: 244 | G117: =_xlfn.XLOOKUP(A117,GWP!$A$22:$A$561,GWP!$F$22:$F$561)*D117 -> 3.75 | H117: 0.915
A118: 40501 | B118: f | C118: Settekivikillustikust alus, fr 32/63 mm | D118: 27 | E118: m² | F118: 17158 | G118: =_xlfn.XLOOKUP(A118,GWP!$A$22:$A$561,GWP!$F$22:$F$561)*D118 -> 4.05 | H118: 69.4899
A119: 40501 | B119: h | C119: Settekivimi ridakillustikust alus, fr 4/32 mm | D119: 15 | E119: m² | F119: 2569 | G119: =_xlfn.XLOOKUP(A119,GWP!$A$22:$A$561,GWP!$F$22:$F$561)*D119 -> 2.25 | H119: 5.78025
A120: 40501 | B120: j | C120: Settekivikillustikust alus, fr 32/63 mm 16cm + settekivikillustikust tehnoloogiline kiht fr 16/32 4cm | D120: 20 | E120: m² | F120: 233526 | G120: =_xlfn.XLOOKUP(A120,GWP!$A$22:$A$561,GWP!$F$22:$F$561)*D120 -> 3 | H120: 700.578
A121: 40501 | B121: k | C121: Settekivikillustikust alus, fr 32/63 mm (mahasõidud) | D121: 27 | E121: m² | F121: 171 | G121: =_xlfn.XLOOKUP(A121,GWP!$A$22:$A$561,GWP!$F$22:$F$561)*D121 -> 4.05 | H121: 0.69255
A122: 40507 | B122: a | C122: Kruusast Tm_150 aluskiht | D122: 20 | E122: m² | F122: 40453 | G122: =_xlfn.XLOOKUP(A122,GWP!$A$22:$A$561,GWP!$F$22:$F$561)*D122 -> 2.4 | H122: 97.0872
A123: 40507 | B123: b | C123: Kruusast Tm_150 aluskiht (mahasõidud) | D123: 20 | E123: m² | F123: 2768 | G123: =_xlfn.XLOOKUP(A123,GWP!$A$22:$A$561,GWP!$F$22:$F$561)*D123 -> 2.4 | H123: 6.6432
A124: 40507 | B124: c | C124: Liivast Tm_75 aluskiht | D124: 35 | E124: m² | F124: 39688 | G124: =_xlfn.XLOOKUP(A124,GWP!$A$22:$A$561,GWP!$F$22:$F$561)*D124 -> 4.2 | H124: 166.6896
A125: 40507 | B125: d | C125: Liivast Tm_75 aluskiht | D125: 50 | E125: m² | F125: 247577 | G125: =_xlfn.XLOOKUP(A125,GWP!$A$22:$A$561,GWP!$F$22:$F$561)*D125 -> 6 | H125: 1485.462
A126: 40511 | B126: a | C126: Sidumata segust kate eraldusribal (settekivimi sõelmed fr 0/8) (mnt 4) | D126: 10 | E126: m² | F126: 23381 | G126: =_xlfn.XLOOKUP(A126,GWP!$A$22:$A$561,GWP!$F$22:$F$561)*D126 -> 1.2 | H126: 28.0572
A127: 40511 | B127: b | C127: Sidumata segust kate, sh purustatud kruus (kruuskate, fr 0/32) | D127: 12 | E127: m² | F127: 10521 | G127: =_xlfn.XLOOKUP(A127,GWP!$A$22:$A$561,GWP!$F$22:$F$561)*D127 -> 1.44 | H127: 15.15024
A128: 40511 | B128: c | C128: Sidumata segust kate, sh purustatud kruus (kruuskate, fr 0/32) (mahasõidud) | D128: 12 | E128: m² | F128: 1381 | G128: =_xlfn.XLOOKUP(A128,GWP!$A$22:$A$561,GWP!$F$22:$F$561)*D128 -> 1.44 | H128: 1.98864
A129: 40511 | B129: e | C129: Sidumata segust kate, sh purustatud kruus (kruuskate, fr 0/32) | D129: 16 | E129: m² | F129: 26482 | G129: =_xlfn.XLOOKUP(A129,GWP!$A$22:$A$561,GWP!$F$22:$F$561)*D129 -> 1.92 | H129: 50.84544
A130: 40511 | B130: f | C130: Sidumata segust kate, sh purustatud kruus (kruuskate, fr 0/32) (mahasõidud) | D130: 16 | E130: m² | F130: 1051 | G130: =_xlfn.XLOOKUP(A130,GWP!$A$22:$A$561,GWP!$F$22:$F$561)*D130 -> 1.92 | H130: 2.01792
A131: 41101 | B131: *BHK | C131: Kompleksstabiliseerimine KS 32 (mnt 4) | D131: 20 | E131: m² | F131: 201581 | G131: =_xlfn.XLOOKUP(A131,GWP!$A$22:$A$561,GWP!$F$22:$F$561)*D131 -> 14.407 | H131: =F131*G131/1000 -> 2904.177467
A132: 41101a | C132: Killustikust täitematerjalid 50% | D132: 50 | E132: m3 | F132: =F131*D131/100*D132/100 -> 20158.1 | G132: =_xlfn.XLOOKUP(A132,GWP!$A$22:$A$561,GWP!$F$22:$F$561) -> 15 | H132: =F132*G132/1000 -> 302.3715
A133: 41101b | C133: Orgaaniline sideaine 1.5% | D133: 1.5 | E133: t | F133: =D131*F131*2.3/100*D133/100 -> 1390.9089 | G133: =_xlfn.XLOOKUP(A133,GWP!$A$22:$A$561,GWP!$F$22:$F$561) -> 550 | H133: 764.999895
A134: 41101c | C134: Hüdrauliline sideaine 2.5% | D134: 2.5 | E134: t | F134: =D131*F131*2.3/100*D134/100 -> 2318.1815 | G134: 728 | H134: 1687.636132
A135: 43002 | B135: a*BHK | C135: Tihedast asfaltbetoonist AC 8 surf segu | D135: 5 | E135: m² | F135: 1748 | G135: =_xlfn.XLOOKUP(A135,GWP!$A$22:$A$561,GWP!$F$22:$F$561)*D135 -> 8.55 | H135: 14.9454
A136: 43002 | B136: k*BHK | C136: Tihedast asfaltbetoonist AC 8 surf segu (Konuvere sild I jalgtee hüdroisolatsiooni kaitsekiht) | D136: 4 | E136: m² | F136: 156 | G136: =_xlfn.XLOOKUP(A136,GWP!$A$22:$A$561,GWP!$F$22:$F$561)*D136 -> 6.84 | H136: 1.06704
A137: 43002 | B137: l*BHK | C137: Tihedast asfaltbetoonist AC 8 surf segu (Konuvere viadukti kergliiklustee hüdroisolatsiooni kaitsekiht) | D137: 3 | E137: m² | F137: 197 | G137: =_xlfn.XLOOKUP(A137,GWP!$A$22:$A$561,GWP!$F$22:$F$561)*D137 -> 5.13 | H137: 1.01061
A138: 43002 | B138: b*BHK | C138: Tihedast asfaltbetoonist AC 16 surf segu (mnt 4) | D138: 5 | E138: m² | F138: 193414 | G138: =_xlfn.XLOOKUP(A138,GWP!$A$22:$A$561,GWP!$F$22:$F$561)*D138 -> 8.55 | H138: 1653.6897
A139: 43002 | B139: c*BHK | C139: Tihedast asfaltbetoonist AC 16 bin segu (Konuvere sillad I ja II) | D139: 4 | E139: m² | F139: 1929 | G139: =_xlfn.XLOOKUP(A139,GWP!$A$22:$A$561,GWP!$F$22:$F$561)*D139 -> 6.84 | H139: 13.19436
A140: 43002 | B140: d*BHK | C140: Tihedast asfaltbetoonist AC 16 surf segu | D140: 4 | E140: m² | F140: 9330 | G140: =_xlfn.XLOOKUP(A140,GWP!$A$22:$A$561,GWP!$F$22:$F$561)*D140 -> 6.84 | H140: 63.8172
A141: 43002 | B141: e*BHK | C141: Tihedast asfaltbetoonist AC 16 surf segu (mahasõidud) | D141: 4 | E141: m² | F141: 200 | G141: =_xlfn.XLOOKUP(A141,GWP!$A$22:$A$561,GWP!$F$22:$F$561)*D141 -> 6.84 | H141: 1.368
A142: 43002 | B142: f*BHK | C142: Tihedast asfaltbetoonist AC 16 surf segu | D142: 5 | E142: m² | F142: 13819 | G142: =_xlfn.XLOOKUP(A142,GWP!$A$22:$A$561,GWP!$F$22:$F$561)*D142 -> 8.55 | H142: 118.15245
A143: 43002 | B143: g*BHK | C143: Tihedast asfaltbetoonist AC 16 surf segu (mahasõidud) | D143: 5 | E143: m² | F143: 162 | G143: =_xlfn.XLOOKUP(A143,GWP!$A$22:$A$561,GWP!$F$22:$F$561)*D143 -> 8.55 | H143: 1.3851
A144: 43002 | B144: h*BHK | C144: Tihedast asfaltbetoonist AC 16 surf segu | D144: 6 | E144: m² | F144: 332 | G144: =_xlfn.XLOOKUP(A144,GWP!$A$22:$A$561,GWP!$F$22:$F$561)*D144 -> 10.26 | H144: 3.40632
A145: 43002 | B145: i*BHK | C145: Tihedast asfaltbetoonist AC 16 surf segu (mahasõidud) | D145: 6 | E145: m² | F145: 622 | G145: =_xlfn.XLOOKUP(A145,GWP!$A$22:$A$561,GWP!$F$22:$F$561)*D145 -> 10.26 | H145: 6.38172
A146: 43002 | B146: j*BHK | C146: Tihedast asfaltbetoonist AC 16 surf segu (põhitee katte kokkuviimised Konuvere I ja II sildade piirkonnas) | D146: 4 | E146: m² | F146: 1932 | G146: =_xlfn.XLOOKUP(A146,GWP!$A$22:$A$561,GWP!$F$22:$F$561)*D146 -> 6.84 | H146: 13.21488
A147: 43003 | B147: a*BHK | C147: Poorsest asfaltbetoonist AC 20 base kiht | D147: 5 | E147: m² | F147: 9430 | G147: =_xlfn.XLOOKUP(A147,GWP!$A$22:$A$561,GWP!$F$22:$F$561)*D147 -> 4.65 | H147: 43.8495
A148: 43003 | B148: b*BHK | C148: Poorsest asfaltbetoonist AC 20 base kiht (mahasõidud) | D148: 5 | E148: m² | F148: 201 | G148: =_xlfn.XLOOKUP(A148,GWP!$A$22:$A$561,GWP!$F$22:$F$561)*D148 -> 4.65 | H148: 0.93465
A149: 43003 | B149: c*BHK | C149: Poorsest asfaltbetoonist AC 32 base kiht | D149: 6 | E149: m² | F149: 2584 | G149: =_xlfn.XLOOKUP(A149,GWP!$A$22:$A$561,GWP!$F$22:$F$561)*D149 -> 5.58 | H149: 14.41872
A150: 43003 | B150: d*BHK | C150: Poorsest asfaltbetoonist AC 32 base kiht (tüüp I) | D150: 8 | E150: m² | F150: 190339 | G150: =_xlfn.XLOOKUP(A150,GWP!$A$22:$A$561,GWP!$F$22:$F$561)*D150 -> 7.44 | H150: 1416.12216
A151: 43003 | B151: e*BHK | C151: Poorsest asfaltbetoonist AC 32 base kiht (mahasõidud) | D151: 8 | E151: m² | F151: 163 | G151: =_xlfn.XLOOKUP(A151,GWP!$A$22:$A$561,GWP!$F$22:$F$561)*D151 -> 7.44 | H151: 1.21272
A152: 43003 | B152: f*BHK | C152: Poorsest asfaltbetoonist AC 32 base kiht (tüüp II) | D152: 8 | E152: m² | F152: 13997 | G152: =_xlfn.XLOOKUP(A152,GWP!$A$22:$A$561,GWP!$F$22:$F$561)*D152 -> 7.44 | H152: 104.13768
A153: 43004 | B153: *BHK | C153: Killustikmastiksasfaldist SMA 16 kiht (mnt 4) | D153: 4 | E153: m² | F153: 1929 | G153: =_xlfn.XLOOKUP(A153,GWP!$A$22:$A$561,GWP!$F$22:$F$561)*D153 -> 7.2 | H153: 13.8888
A154: 43502 | B154: a | C154: Geotekstiili NGS3 paigaldamine | E154: m² | F154: 288292 | G154: =_xlfn.XLOOKUP(A154,GWP!$A$22:$A$561,GWP!$F$22:$F$561) -> 2.24 | H154: 645.77408
A155: 43502 | B155: b | C155: Geotekstiili NGS3 paigaldamine (mahasõidud) | E155: m² | F155: 453 | G155: =_xlfn.XLOOKUP(A155,GWP!$A$22:$A$561,GWP!$F$22:$F$561) -> 2.24 | H155: 1.01472
A156: 43503 | C156: Asfaldivõrgu paigaldamine (Konuvere sild I) | D156: 100x100kN | E156: m2 | F156: 1100 | G156: =_xlfn.XLOOKUP(A156,GWP!$A$22:$A$561,GWP!$F$22:$F$561) -> 2.68 | H156: 2.948
A157: 44005 | B157: a*BHK | C157: 2-kordne pindamine | D157: =11+13 -> 24 | E157: m² | F157: 23056 | G157: =_xlfn.XLOOKUP(A157,GWP!$A$22:$A$561,GWP!$F$22:$F$561)*D157 -> 2.88 | H157: 66.40128
A158: 44005 | B158: b*BHK | C158: 2-kordne pindamine (mahasõidud) | D158: =11+13 -> 24 | E158: m² | F158: 751 | G158: =_xlfn.XLOOKUP(A158,GWP!$A$22:$A$561,GWP!$F$22:$F$561)*D158 -> 2.88 | H158: 2.16288
A159: 44501 | B159: a | C159: Peenarde kindlustamine (segu nr 6, fr.0/32) | D159: 6 | E159: m² | F159: 31 | G159: =_xlfn.XLOOKUP(A159,GWP!$A$75:$A$561,GWP!$F$75:$F$561)*D159 -> 0.9 | H159: 0.0279
A160: 44501 | B160: b | C160: Peenarde kindlustamine (segu nr 6, fr.0/32) (mahasõidud) | D160: 6 | E160: m² | F160: 305 | G160: =_xlfn.XLOOKUP(A160,GWP!$A$75:$A$561,GWP!$F$75:$F$561)*D160 -> 0.9 | H160: 0.2745
A161: 44501 | B161: c | C161: Peenarde kindlustamine (segu nr 6, fr.0/32) | D161: 9 | E161: m² | F161: 1675 | G161: =_xlfn.XLOOKUP(A161,GWP!$A$75:$A$561,GWP!$F$75:$F$561)*D161 -> 1.35 | H161: 2.26125
A162: 44501 | B162: d | C162: Peenarde kindlustamine (segu nr 6, fr.0/32) (mahasõidud) | D162: 9 | E162: m² | F162: 34 | G162: =_xlfn.XLOOKUP(A162,GWP!$A$75:$A$561,GWP!$F$75:$F$561)*D162 -> 1.35 | H162: 0.0459
A163: 44501 | B163: e | C163: Peenarde kindlustamine (segu nr 6, fr.0/32) | D163: 13 | E163: m² | F163: 2996 | G163: =_xlfn.XLOOKUP(A163,GWP!$A$75:$A$561,GWP!$F$75:$F$561)*D163 -> 1.95 | H163: 5.8422
A164: 44501 | B164: g | C164: Peenarde kindlustamine (segu nr 6, fr.0/32) (mahasõidud) | D164: 13 | E164: m² | F164: 17 | G164: =_xlfn.XLOOKUP(A164,GWP!$A$75:$A$561,GWP!$F$75:$F$561)*D164 -> 1.95 | H164: 0.03315
A165: 44501 | B165: h | C165: Peenarde kindlustamine (segu nr 6, fr.0/32) | D165: 13 | E165: m² | F165: 18543 | G165: =_xlfn.XLOOKUP(A165,GWP!$A$75:$A$561,GWP!$F$75:$F$561)*D165 -> 1.95 | H165: 36.15885
A166: 45001 | B166: a | C166: Betoonäärekivid | D166: 30*15 cm | E166: m | F166: 395 | G166: =_xlfn.XLOOKUP(A166,GWP!$A$75:$A$561,GWP!$F$75:$F$561) -> 19 | H166: 7.505
A167: 45003 | C167: Tardkiviäärekivid | D167: 30*15 cm | E167: m | F167: 166 | G167: =_xlfn.XLOOKUP(A167,GWP!$A$75:$A$561,GWP!$F$75:$F$561) -> 32 | H167: 5.312
A168: 45004 | B168: a | C168: Tehiskivist sillutuskate, punane | D168: h = 6 cm | E168: m² | F168: 168 | G168: 25 | H168: 4.2
A169: 45007 | C169: Looduskivist sillutuskate (nt klompkivi 14x14x14cm) | D169: h = 14 cm | E169: m² | F169: 238 | G169: =_xlfn.XLOOKUP(A169,GWP!$A$75:$A$561,GWP!$F$75:$F$561) -> 88 | H169: 20.944
G171: Kantud kokkuvõttesse | H171: =SUM(H105:H170) -> 12724.0079
A174: KULUTUSED Nr. 5: DRENAAŽ JA TRUUBID
A175: Artikli nr. | C175: Makseartikli nimetus | D175: Parameetrid | E175: Mõõtühik | F175: Maht | G175: kg/CO2e | H175: t/CO2e
A176: 1 | B176: 2 | C176: 3 | D176: 4 | E176: 5 | F176: 6 | G176: 7 | H176: 8
A178: 51001 | B178: a | C178: Plastiktruup, sh otste kindlustus | D178: 400 | E178: m | F178: 59 | G178: =_xlfn.XLOOKUP(A178,GWP!$A$75:$A$561,GWP!$F$75:$F$561)*D178 -> 52 | H178: =F178*G178/1000 -> 3.068
A179: 51001 | B179: b | C179: Plastiktruup, sh otste kindlustus | D179: 500 | E179: m | F179: 374 | G179: =_xlfn.XLOOKUP(A179,GWP!$A$75:$A$561,GWP!$F$75:$F$561)*D179 -> 65 | H179: 24.31
A180: 51001 | B180: d | C180: Plastiktruup, sh otste kindlustus | D180: 600 | E180: m | F180: 122 | G180: =_xlfn.XLOOKUP(A180,GWP!$A$75:$A$561,GWP!$F$75:$F$561)*D180 -> 78 | H180: 9.516
A181: 51001 | B181: e | C181: Plastiktruup, sh otste kindlustus | D181: 1000 | E181: m | F181: 260 | G181: =_xlfn.XLOOKUP(A181,GWP!$A$75:$A$561,GWP!$F$75:$F$561)*D181 -> 130 | H181: 33.8
A182: 51001 | B182: f | C182: Plastiktruup, sh otste kindlustus | D182: 1200 | E182: m | F182: 88.6 | G182: =_xlfn.XLOOKUP(A182,GWP!$A$75:$A$561,GWP!$F$75:$F$561)*D182 -> 156 | H182: 13.8216
A183: 51001 | B183: g | C183: Plastiktruup, sh otste kindlustus | D183: 1400 | E183: m | F183: 26 | G183: =_xlfn.XLOOKUP(A183,GWP!$A$75:$A$561,GWP!$F$75:$F$561)*D183 -> 182 | H183: 4.732
A185: Sademevee kanalisatsioon ja drenaaž
A186: 50101 | B186: a | C186: Isevoolse täisringaugustusega drenaazitoru PP, SN 8, De 200 koos muhvidega hankimine ja rajamine koos kõigi kaasnevate tööde ning tarvikutega, sh geotekttiilkangas (NGS II profiil) algtäite ümber , killustik jne vastavalt teeprojekti osa lahendusele, sh kaeviku kaevamine, torualuse ehitamine, kaeviku tagasitäide, alused, katendite aluste rajamine kuni teeprojektis kirjeldatud töödeni, materjalid, taastamine, kindlustus jne | D186: 200 | E186: m | F186: 432 | G186: =_xlfn.XLOOKUP(A186,GWP!$A$75:$A$561,GWP!$F$75:$F$561)*D186 -> 10 | H186: =F186*G186/1000 -> 4.32
A187: 50101 | B187: b | C187: Isevoolse täisringaugustusega drenaazitoru PP, SN 16, De 160 koos muhvidega hankimine ja rajamine koos kõigi kaasnevate tööde ning tarvikutega, sh geotekttiilkangas (NGS II profiil) algtäite ümber , killustik jne vastavalt teeprojekti osa lahendusele, sh kaeviku kaevamine, torualuse ehitamine, kaeviku tagasitäide, alused, katendite aluste rajamine kuni teeprojektis kirjeldatud töödeni, materjalid, taastamine, kindlustus jne | D187: 160 | E187: m | F187: 62 | G187: =_xlfn.XLOOKUP(A187,GWP!$A$75:$A$561,GWP!$F$75:$F$561)*D187 -> 8 | H187: =F187*G187/1000 -> 0.496
A188: 50202 | B188: a | C188: Teleskoopne drenaazi PE plastkaevu D 560/500 põhjakotiga 20 cm hankimine ja rajamine; teleskooptoru, tihendiga, malmkrae ja malmluugiga 40T,koos paigalduega | D188: 560 | E188: tk | F188: 6 | G188: =_xlfn.XLOOKUP(A188,GWP!$A$75:$A$561,GWP!$F$75:$F$561)*D188 -> 280 | H188: 1.68
A189: 50202 | B189: b | C189: Drenaaži raudbetoonist kaevu D 800 põhjakotiga 20 cm hankimine ja rajamine; Kaev kaev katteplaadiga ja malmluugiga 40T | D189: 800 | E189: tk | F189: 2 | G189: =_xlfn.XLOOKUP(A189,GWP!$A$75:$A$561,GWP!$F$75:$F$561)*D189 -> 400 | H189: 0.8
A190: 50202 | B190: c | C190: Tagasilöögiklapp Wastop torustikule De 200 | D190: 200 | E190: tk | F190: 4 | G190: =_xlfn.XLOOKUP(A190,GWP!$A$75:$A$561,GWP!$F$75:$F$561)*D190 -> 100 | H190: 0.4
A191: 50202 | B191: d | C191: Tagasilöögiklapp Wastop torustikule De 160 | D191: 160 | E191: tk | F191: 2 | G191: =_xlfn.XLOOKUP(A191,GWP!$A$75:$A$561,GWP!$F$75:$F$561)*D191 -> 80 | H191: 0.16
A192: 50209 | C192: Torude väljavoolu kindlustamine (munakivisillutis h=15cm betoonalusel B22,5 h=15cm ja geotekstiilil (NGS II profiil)) | E192: tk | F192: 50 | G192: =_xlfn.XLOOKUP(A192,GWP!$A$75:$A$561,GWP!$F$75:$F$561) -> 8.7 | H192: 0.435
A193: 50701 | B193: a | C193: Sademevee kanalisatsioonitoru PE või PP SN 16, De 400 mm koos muhvidega hankimine ja rajamine koos kõigi kaasnevate tööde ning tarvikutega (sh hoiatuslint), sh kaeviku kaevamine, torualuse ehitamine, kaeviku tagasitäide, alused, katendite aluste rajamine kuni teeprojektis kirjeldatud töödeni, materjalid, taastamine, kindlustus jne | D193: 400 | E193: m | F193: 113 | G193: =_xlfn.XLOOKUP(A193,GWP!$A$75:$A$561,GWP!$F$75:$F$561)*D193 -> 20 | H193: 2.26
A194: 50701 | B194: b | C194: Sademevee kanalisatsioonitoru PE või PP SN 8, De 315 mm koos muhvidega hankimine ja rajamine koos kõigi kaasnevate tööde ning tarvikutega (sh hoiatuslint), sh kaeviku kaevamine, torualuse ehitamine, kaeviku tagasitäide, alused, katendite aluste rajamine kuni teeprojektis kirjeldatud töödeni, materjalid, taastamine, kindlustus jne | D194: 315 | E194: m | F194: 26 | G194: =_xlfn.XLOOKUP(A194,GWP!$A$75:$A$561,GWP!$F$75:$F$561)*D194 -> 15.75 | H194: 0.4095
A195: 50701 | B195: c | C195: Sademevee kanalisatsioonitoru PE või PP SN 16, De 315 mm koos muhvidega hankimine ja rajamine koos kõigi kaasnevate tööde ning tarvikutega (sh hoiatuslint), sh kaeviku kaevamine, torualuse ehitamine, kaeviku tagasitäide, alused, katendite aluste rajamine kuni teeprojektis kirjeldatud töödeni, materjalid, taastamine, kindlustus jne | D195: 315 | E195: m | F195: 38 | G195: =_xlfn.XLOOKUP(A195,GWP!$A$75:$A$561,GWP!$F$75:$F$561)*D195 -> 15.75 | H195: 0.5985
A196: 50701 | B196: d | C196: Sademevee kanalisatsioonitoru PE või PP SN 16, De 250 mm koos muhvidega hankimine ja rajamine koos kõigi kaasnevate tööde ning tarvikutega (sh hoiatuslint), sh kaeviku kaevamine, torualuse ehitamine, kaeviku tagasitäide, alused, katendite aluste rajamine kuni teeprojektis kirjeldatud töödeni, materjalid, taastamine, kindlustus jne | D196: 250 | E196: m | F196: 7 | G196: =_xlfn.XLOOKUP(A196,GWP!$A$75:$A$561,GWP!$F$75:$F$561)*D196 -> 12.5 | H196: 0.0875
A197: 50701 | B197: e | C197: Sademevee kanalisatsioonitoru PE või PP SN 8, De 200 mm koos muhvidega hankimine ja rajamine koos kõigi kaasnevate tööde ning tarvikutega (sh hoiatuslint), sh kaeviku kaevamine, torualuse ehitamine, kaeviku tagasitäide, alused, katendite aluste rajamine kuni teeprojektis kirjeldatud töödeni, materjalid, taastamine, kindlustus jne | D197: 200 | E197: m | F197: 760 | G197: =_xlfn.XLOOKUP(A197,GWP!$A$75:$A$561,GWP!$F$75:$F$561)*D197 -> 10 | H197: 7.6
A198: 50701 | B198: f | C198: Sademevee kanalisatsioonitoru PE või PP SN 8, De 160 mm koos muhvidega hankimine ja rajamine koos kõigi kaasnevate tööde ning tarvikutega (sh hoiatuslint), sh kaeviku kaevamine, torualuse ehitamine, kaeviku tagasitäide, alused, katendite aluste rajamine kuni teeprojektis kirjeldatud töödeni, materjalid, taastamine, kindlustus jne | D198: 160 | E198: m | F198: 6 | G198: =_xlfn.XLOOKUP(A198,GWP!$A$75:$A$561,GWP!$F$75:$F$561)*D198 -> 8 | H198: 0.048
A199: 50702 | B199: a | C199: Teleskoopilise sademevee kanalisatsiooni PE plastkaevu D 1125/630 hankimine ja rajamine koos kõigi kaasnevate tööde ning tarvikutega; teleskooptoru, tihendid, malmkrae ja malmluuk 40T. Rajatakse voolurahustikaevuna. | D199: 1125 | E199: tk | F199: 1 | G199: =_xlfn.XLOOKUP(A199,GWP!$A$75:$A$561,GWP!$F$75:$F$561)*D199 -> 562.5 | H199: 0.5625
A200: 50702 | B200: b | C200: Teleskoopilise sademevee kanalisatsiooni PE plastkaevu D 800/500 hankimine ja rajamine koos kõigi kaasnevate tööde ning tarvikutega; teleskooptoru, tihendid, malmkrae ja malmluuk 40T | D200: 800 | E200: tk | F200: 2 | G200: =_xlfn.XLOOKUP(A200,GWP!$A$75:$A$561,GWP!$F$75:$F$561)*D200 -> 400 | H200: 0.8
A201: 50702 | B201: c | C201: Sademevee kanalisatsiooni raudbetoonist kaevu D 800 hankimine ja rajamine koos kõigi kaasnevate tööde ning tarvikutega; kaev katteplaadiga ja malmist restluugiga D700 40T | D201: 800 | E201: tk | F201: 2 | G201: =_xlfn.XLOOKUP(A201,GWP!$A$75:$A$561,GWP!$F$75:$F$561)*D201 -> 400 | H201: 0.8
A202: 50702 | B202: d | C202: Teleskoopilise sademevee PE restkaevu ISO- SVK-800 D560/500 settepalliga 300l hankimine ja rajamine koos kõigi kaasnevate tööde ning tarvikutega; kaevu väljavool varustatud kolmiku ja pesutoruga, kaev varustatud restluugiga D500 40T, luugi ümbrus kindlustatud munakividega | D202: 560 | E202: tk | F202: 42 | G202: =_xlfn.XLOOKUP(A202,GWP!$A$75:$A$561,GWP!$F$75:$F$561)*D202 -> 280 | H202: 11.76
A203: 50702 | B203: e | C203: Teleskoopilise sademevee PE restkaevu ISO- SVK-800 D560/500 settepalliga 300l hankimine ja rajamine koos kõigi kaasnevate tööde ning tarvikutega; kaevu väljavool varustatud kolmiku ja pesutoruga, kaev varustatud nelikant restluugiga D500 40T | D203: 560 | E203: tk | F203: 4 | G203: =_xlfn.XLOOKUP(A203,GWP!$A$75:$A$561,GWP!$F$75:$F$561)*D203 -> 280 | H203: 1.12
A204: 50702 | B204: f | C204: Sademevee kanalisatsiooni raudbetoonist restkaevu D 800 settepesaga H= 600 mm hankimine ja rajamine koos kõigi kaasnevate tööde ning tarvikutega; kaev katteplaadiga ja malmist restluugiga D700 40T, luugi ümbrus kindlustatud munakividega | D204: 800 | E204: tk | F204: 4 | G204: =_xlfn.XLOOKUP(A204,GWP!$A$75:$A$561,GWP!$F$75:$F$561)*D204 -> 400 | H204: 1.6
A205: 50702 | B205: g | C205: Sademevee kanalisatsiooni raudbetoonist kaevu siseläbimõõduga DN 2000, sügavusega maapinnast ca 6-7 m hankimine ja rajamine koos kõigi kaasnevate tööde ning tarvikutega. Kaev kaev katteplaadiga ja malmluugiga D600 40T | D205: 2000 | E205: tk | F205: 3 | G205: =_xlfn.XLOOKUP(A205,GWP!$A$75:$A$561,GWP!$F$75:$F$561)*D205 -> 1000 | H205: 3
A206: 50802 | C206: Sademevete vibrobetoonist voolurenni 500 x 200 x 60 mm hankimine ja paigaldamine koos aluse rajamisega rennile | E206: m | F206: 89 | H206: =F206*G206/1000 -> 0
A207: 80701 | C207: Sademevee kanalisatsiooni survetoru PE 100 PN10 SDR17 De 160 hankimine ja rajamine avatud kaevikuga koos kõigi kaasnevate tööde ning tarvikutega (sh hoiatuslint, märkekaabel). Sealhulgas kaeviku kaevamine, torualuse ehitamine, kaeviku tagasitäide, alused, katendite aluste rajamine kuni teeprojektis kirjeldatud töödeni, materjalid, taastamine, kindlustus jne | D207: 160 | E207: m | F207: 24 | G207: =_xlfn.XLOOKUP(A207,GWP!$A$75:$A$561,GWP!$F$75:$F$561)*D207 -> 0 | H207: 0
A208: 80702 | C208: Sademevee pumpla hankimine ja rajamine. Pumpla klaasplastist Di 2000 H=7700 (sh 2 pumpa kõik muud seadmed vastavalt pumpla joonisele, nugasiiber pumpla sissevoolu torule PVC De 250) Q=24-28 l/s. H=6,0-4,7 mVS NB! Pumplale koostada lisaks tootejoonis | D208: Q=24-28 l/s. H=6,0-4,7 mVS | E208: tk | F208: 1 | H208: 0
A210: Maaparandus
A211: 20203 | C211: Võsa langetamine ja koondamine | E211: m2 | F211: 200 | G211: =_xlfn.XLOOKUP(A211,GWP!$A$22:$A$561,GWP!$F$22:$F$561) -> 0 | H211: =F211*G211/1000 -> 0
A212: 20211 | C212: Kändude juurimine ja äravedu | E212: m2 | F212: 200 | G212: =_xlfn.XLOOKUP(A212,GWP!$A$22:$A$561,GWP!$F$22:$F$561) -> 0.017 | H212: =F212*G212/1000 -> 0.0034
A213: 20307 | C213: Torudreenide väljatõstmine ja utiliseerimine | E213: m | F213: 6604 | G213: =_xlfn.XLOOKUP(A213,GWP!$A$22:$A$561,GWP!$F$22:$F$561) -> 0 | H213: 0
A214: 50104 | C214: Drenaažitorude otsakorkide Ø 50-100 mm paigaldamine | E214: tk | F214: 73 | G214: =_xlfn.XLOOKUP(A214,GWP!$A$22:$A$561,GWP!$F$22:$F$561) -> 0 | H214: 0
A215: 30201 | B215: a | C215: Kaevemaht ekskavaatoriga I-II pinnasegrupp ja mullavalli laialiajamine (lüke kuni 20m) | E215: m³ | F215: 5 | G215: =_xlfn.XLOOKUP(A215,GWP!$A$22:$A$561,GWP!$F$22:$F$561) -> 1.7 | H215: 0.0085
A216: 30201 | B216: b | C216: Kaevemaht ekskavaatoriga III pinnasegrupp ja mullavalli laialiajamine (lüke kuni 20m) | E216: m³ | F216: 2 | G216: =_xlfn.XLOOKUP(A216,GWP!$A$22:$A$561,GWP!$F$22:$F$561) -> 1.7 | H216: 0.0034
A217: 50101 | B217: a | C217: Ø 110 mm täisringaugustus dreenikollektoru ehitus 110-PL | D217: De 110 mm | E217: m | F217: 258 | G217: =_xlfn.XLOOKUP(A217,GWP!$A$22:$A$561,GWP!$F$22:$F$561) -> 0.05 | H217: 0.0129
A218: 50101 | B218: b | C218: Ø 160 mm täisringaugustus dreenikollektoru ehitus 160-PL | D218: De 160 mm | E218: m | F218: 652 | G218: =_xlfn.XLOOKUP(A218,GWP!$A$22:$A$561,GWP!$F$22:$F$561) -> 0.05 | H218: 0.0326
A219: 50101 | B219: c | C219: Ø 200 mm dreenikollektoru ehitus 200-PL | D219: De 200 mm | E219: m | F219: 215 | G219: =_xlfn.XLOOKUP(A219,GWP!$A$22:$A$561,GWP!$F$22:$F$561) -> 0.05 | H219: 0.01075
A220: 50107 | B220: a | C220: Kollektorisuudme ehitamine D<110 mm + tähispost DTP-PL | D220: D<110 mm | E220: tk | F220: 10 | G220: =_xlfn.XLOOKUP(A220,GWP!$A$22:$A$561,GWP!$F$22:$F$561) -> 0 | H220: 0
A221: 50107 | B221: b | C221: Kollektorisuudme ehitamine D=110 mm-160mm + tähispost DTP-PL | D221: D 110-160 mm | E221: tk | F221: 3 | G221: =_xlfn.XLOOKUP(A221,GWP!$A$22:$A$561,GWP!$F$22:$F$561) -> 0 | H221: 0
A222: 50107 | B222: c | C222: Kollektorisuudme ehitamine D=200 mm + tähispost DTP-PL | D222: D 200 mm | E222: tk | F222: 2 | G222: =_xlfn.XLOOKUP(A222,GWP!$A$22:$A$561,GWP!$F$22:$F$561) -> 0 | H222: 0
A223: 50702 | B223: a | C223: Ühenduskaevu ÜK100/2,4 ehitamine + kaevu tähis TP-PL | D223: D 1000 mm | E223: tk | F223: 3 | G223: =_xlfn.XLOOKUP(A223,GWP!$A$22:$A$561,GWP!$F$22:$F$561) -> 0.5 | H223: 0.0015
A224: 50702 | B224: b | C224: Allikakaevu AK 70/4.2 ehitamine | D224: D 700 mm | E224: tk | F224: 1 | G224: =_xlfn.XLOOKUP(A224,GWP!$A$22:$A$561,GWP!$F$22:$F$561) -> 0.5 | H224: 0.0005
A225: 50107 | C225: Dreenide ühendamine (tüüp OÜ) | E225: tk | F225: 91 | G225: =_xlfn.XLOOKUP(A225,GWP!$A$22:$A$561,GWP!$F$22:$F$561) -> 0 | H225: 0
A226: 80501 | C226: Ø 300 mm hülsstoru SN16 ehitus | D226: DN 300 mm | E226: m | F226: 15 | G226: =_xlfn.XLOOKUP(A226,GWP!$A$22:$A$561,GWP!$F$22:$F$561) -> 0 | H226: 0
G228: Kantud kokkuvõttesse | H228: =SUM(H178:H227) -> 128.25815
... 204 more rows
